Organisation Name,Effective Date,Purch Date,Service Area,Expense Area,Beneficiary,Net amount,    Tax,    Gross,Long Text,MCC Description
Buckinghamshire Council ,31.01.2024,31.01.2024,Deputy Chief Executive,AH&R- DCE Dir,TESCO STORES 2020,57.18,0,57.18,Awaiting Coding,Grocery stores
Buckinghamshire Council ,31.01.2024,31.01.2024,Deputy Chief Executive,AH&R- DCE Dir,SumUp  *Cabs4u,8,0,8,Staff Travelling Expenses,Taxicabs & limousines
Buckinghamshire Council ,31.01.2024,31.01.2024,Deputy Chief Executive,AH&R- DCE Dir,TESCO STORES 2020,-6,0,-6,Awaiting Coding,Grocery stores
Buckinghamshire Council ,31.01.2024,31.01.2024,"Planning, Growth & Sustainability",Planning & Regeneration - PGS,WWW.CIOB.ORG.UK,322,0,322,Professional Subscriptions re Employees,Membership organisations
Buckinghamshire Council ,31.01.2024,31.01.2024,Communities,Housing & Homelessness & Regulatory PGS,687 - WILMINGTON,8,0,8,Administrative Equipment & Tools,Misc. general merchandise
Buckinghamshire Council ,31.01.2024,31.01.2024,Communities,Housing & Homelessness & Regulatory PGS,687 - WILMINGTON,2.2,0,2.2,Administrative Equipment & Tools,Misc. general merchandise
Buckinghamshire Council ,31.01.2024,31.01.2024,"Planning, Growth & Sustainability",Housing & Homelessness & Regulatory PGS,PREMIER INN,463,0,463,Homelessness,Premier Inn
Buckinghamshire Council ,31.01.2024,31.01.2024,Children's Services,Education & Childrens Services - CS Dir,AMAZON* 205-2893177-28,75.16,0,75.16,Leaving Care - Grants for Care Leavers,Misc. general merchandise
Buckinghamshire Council ,31.01.2024,31.01.2024,Children's Services,Education & Childrens Services - CS Dir,AMAZON* 205-2893177-28,103.88,0,103.88,Leaving Care - Grants for Care Leavers,Misc. general merchandise
Buckinghamshire Council ,31.01.2024,31.01.2024,Children's Services,Education & Childrens Services - CS Dir,IKEA LTD SHOP ONLINE,493,0,493,Leaving Care - Grants for Care Leavers,Furniture & home furnishing
Buckinghamshire Council ,31.01.2024,31.01.2024,Children's Services,Education & Childrens Services - CS Dir,HOO*HOOTSUITE INC,966.46,0,966.46,Computer Software Licences & Purchase,Misc business services
Buckinghamshire Council ,31.01.2024,31.01.2024,Communities,Culture & Leisure - Communities Dir,FACEBK QEHZ4W72A2,12,0,12,Events Expenditure,Advertising services
Buckinghamshire Council ,31.01.2024,31.01.2024,Children's Services,Education & Childrens Services - CS Dir,POST OFFICE COUNTER,8.15,0,8.15,General Postage,Postal services
Buckinghamshire Council ,31.01.2024,31.01.2024,"Planning, Growth & Sustainability",AH&R - PGS Dir,AMAZON* 204-6280027-51,5.9,0,5.9,Awaiting Coding,Misc. general merchandise
Buckinghamshire Council ,31.01.2024,31.01.2024,"Planning, Growth & Sustainability",AH&R - PGS Dir,WEL MED ONLINE ORDER,143.88,0,143.88,Medical Supplies & Services inc Vet'nary,Medical & health services
Buckinghamshire Council ,31.01.2024,31.01.2024,Resources,AH&R - Res Dir,TRAVELODGE GB0000,179.51,0,179.51,"Courses, Conference and Seminar Fees",Travelodge
Buckinghamshire Council ,31.01.2024,31.01.2024,Children's Services,Education & Childrens Services - CS Dir,MARKS&SPENCER PLC SA,2,0,2,Activities & General Recreation,Grocery stores
Buckinghamshire Council ,31.01.2024,31.01.2024,Children's Services,Education & Childrens Services - CS Dir,TESCO STORES 2020,131.32,0,131.32,Consumable Supplies,Grocery stores
Buckinghamshire Council ,31.01.2024,31.01.2024,Children's Services,Education & Childrens Services - CS Dir,AMZNMKTPLACE,"1,453.02",0,"1,453.02","Books, Records, Films & Oth Publications",Miscellaneous retail
Buckinghamshire Council ,31.01.2024,31.01.2024,Children's Services,Education & Childrens Services - CS Dir,AMZNMKTPLACE,-6.65,0,-6.65,"Books, Records, Films & Oth Publications",Miscellaneous retail
Buckinghamshire Council ,31.01.2024,31.01.2024,Children's Services,Education & Childrens Services - CS Dir,AMZNMKTPLACE,-6.65,0,-6.65,"Books, Records, Films & Oth Publications",Miscellaneous retail
Buckinghamshire Council ,31.01.2024,31.01.2024,Resources,AH&R - Res Dir,Amazon.co.uk,154.82,0,154.82,Stationery & Office Supplies,Direct sales companies
Buckinghamshire Council ,31.01.2024,31.01.2024,Children's Services,Education & Childrens Services - CS Dir,ABSOLUTELY TEN PIN,203.5,0,203.5,Activities & General Recreation,Misc. recreational services
Buckinghamshire Council ,31.01.2024,31.01.2024,Children's Services,Education & Childrens Services - CS Dir,GEO COFFEE ROASTING,2.5,0,2.5,Subsistence,Fast food restaurants
Buckinghamshire Council ,31.01.2024,31.01.2024,Children's Services,Education & Childrens Services - CS Dir,MARKS&SPENCER PLC SA,20.34,0,20.34,Awaiting Coding,Grocery stores
Buckinghamshire Council ,31.01.2024,31.01.2024,"Planning, Growth & Sustainability",Housing & Homelessness & Regulatory PGS,AO RETAIL LIMITED,449,0,449,Furniture,Household appliance stores
Buckinghamshire Council ,31.01.2024,31.01.2024,Resources,AH&R - Res Dir,FACEBK *LR6MXW3842,352.78,0,352.78,Permanent Recruitment Costs,Advertising services
Buckinghamshire Council ,31.01.2024,31.01.2024,"Planning, Growth & Sustainability",Housing & Homelessness & Regulatory PGS,AMAZON* 204-6578543-98,433.47,0,433.47,Awaiting Coding,Misc. general merchandise
Buckinghamshire Council ,31.01.2024,31.01.2024,"Planning, Growth & Sustainability",Housing & Homelessness & Regulatory PGS,AMZNMktplace,936.57,0,936.57,Awaiting Coding,Miscellaneous retail
Buckinghamshire Council ,31.01.2024,31.01.2024,Resources,AH&R - Res Dir,HEYZINE.COM,69,0,69,Computer Consumables,Computer software stores
Buckinghamshire Council ,31.01.2024,31.01.2024,Children's Services,Education & Childrens Services - CS Dir,TRAVELODGE GB0000,563.47,0,563.47,Sec 17: Accommodation,Travelodge
Buckinghamshire Council ,31.01.2024,31.01.2024,Adults and Health,Health & Wellbeing - Adults & Health Dir,TESCO STORES 2162,78.09,0,78.09,Activities & General Recreation,Grocery stores
Buckinghamshire Council ,31.01.2024,31.01.2024,Children's Services,Education & Childrens Services - CS Dir,PARADIGM HOUSING GROUP,206.76,0,206.76,Leaving Care - Rent,Government services
Buckinghamshire Council ,31.01.2024,31.01.2024,Resources,AH&R - Res Dir,TRAVELODGE GB0846,57.5,0,57.5,"Courses, Conference and Seminar Fees",Travelodge
Buckinghamshire Council ,31.01.2024,31.01.2024,Communities,Culture & Leisure - Communities Dir,TVLICENSING.CO.UK,159,0,159,Professional Services (non curriculum) - External,Consultants & public relation services
Buckinghamshire Council ,31.01.2024,31.01.2024,Children's Services,Education & Childrens Services - CS Dir,AMAZON* 204-7778987-32,109.98,0,109.98,Equipment (including storage),Misc. general merchandise
Buckinghamshire Council ,31.01.2024,30.01.2024,Children's Services,Education & Childrens Services - CS Dir,AMAZON* 205-8871075-81,21.8,0,21.8,Leaving Care - Grants for Care Leavers,Misc. general merchandise
Buckinghamshire Council ,31.01.2024,30.01.2024,Children's Services,Education & Childrens Services - CS Dir,AMAZON* 205-2893177-28,54.98,0,54.98,Leaving Care - Grants for Care Leavers,Misc. general merchandise
Buckinghamshire Council ,31.01.2024,30.01.2024,Resources,AH&R - Res Dir,SumUp  *Aa taxis Leigh,400,0,400,Staff Travelling Expenses,Taxicabs & limousines
Buckinghamshire Council ,31.01.2024,30.01.2024,"Planning, Growth & Sustainability",Housing & Homelessness & Regulatory PGS,PREMIER INN,58,0,58,Homelessness,Premier Inn
Buckinghamshire Council ,31.01.2024,30.01.2024,Adults and Health,Health & Wellbeing - Adults & Health Dir,ASDA SUPERSTORE,5.8,0,5.8,Awaiting Coding,Grocery stores
Buckinghamshire Council ,31.01.2024,30.01.2024,Children's Services,Education & Childrens Services - CS Dir,BROMFORD HOUSING ASSOCIAT,673.14,0,673.14,Leaving Care - Rent,Government services
Buckinghamshire Council ,31.01.2024,30.01.2024,Children's Services,Education & Childrens Services - CS Dir,WWW.ARGOS.CO.UK,409.95,0,409.95,Leaving Care - Grants for Care Leavers,Department stores
Buckinghamshire Council ,31.01.2024,30.01.2024,Children's Services,Education & Childrens Services - CS Dir,AO RETAIL LIMITED,996,0,996,Leaving Care - Grants for Care Leavers,Household appliance stores
Buckinghamshire Council ,31.01.2024,30.01.2024,Children's Services,Education & Childrens Services - CS Dir,AMAZON* 205-4382823-56,15.99,0,15.99,Leaving Care - Grants for Care Leavers,Misc. general merchandise
Buckinghamshire Council ,31.01.2024,30.01.2024,Children's Services,Education & Childrens Services - CS Dir,AMAZON* 205-8133389-41,13.98,0,13.98,Leaving Care - Grants for Care Leavers,Misc. general merchandise
Buckinghamshire Council ,31.01.2024,30.01.2024,Children's Services,Education & Childrens Services - CS Dir,AMAZON* 205-9426785-12,44.98,0,44.98,Leaving Care - Grants for Care Leavers,Misc. general merchandise
Buckinghamshire Council ,31.01.2024,30.01.2024,Children's Services,Education & Childrens Services - CS Dir,AMAZON* 205-3845428-85,14.09,0,14.09,Leaving Care - Grants for Care Leavers,Misc. general merchandise
Buckinghamshire Council ,31.01.2024,30.01.2024,Children's Services,Education & Childrens Services - CS Dir,BKG*HOTEL AT BOOKING.C,207,0,207,Other Employees Expenses,Travel agencies
Buckinghamshire Council ,31.01.2024,30.01.2024,Children's Services,Education & Childrens Services - CS Dir,TESCO STORES 2038,191.23,0,191.23,Awaiting Coding,Grocery stores
Buckinghamshire Council ,31.01.2024,30.01.2024,Deputy Chief Executive,Communities - DCE,WWW.ARGOS.CO.UK,67.95,0,67.95,Awaiting Coding,Department stores
Buckinghamshire Council ,31.01.2024,30.01.2024,Children's Services,Education & Childrens Services - CS Dir,BUCKINGHAMSHIRE CNCL,11,0,11,Sec 20/31: Financial Assistance One Off,Government services
Buckinghamshire Council ,31.01.2024,30.01.2024,Children's Services,Education & Childrens Services - CS Dir,BUCKINGHAMSHIRE CNCL,22,0,22,Sec 20/31: Financial Assistance One Off,Government services
Buckinghamshire Council ,31.01.2024,30.01.2024,Children's Services,Education & Childrens Services - CS Dir,LONDON BOR'OF HILL,13,0,13,Sec 20/31: Financial Assistance One Off,Government services
Buckinghamshire Council ,31.01.2024,30.01.2024,Children's Services,Education & Childrens Services - CS Dir,TRAVELODGE GB0000,80,0,80,"Courses, Conference and Seminar Fees",Travelodge
Buckinghamshire Council ,31.01.2024,30.01.2024,Children's Services,Education & Childrens Services - CS Dir,CURRYS BUSINESS,294.95,58.99,353.94,Computer Consumables,Computer software stores
Buckinghamshire Council ,31.01.2024,30.01.2024,Children's Services,Education & Childrens Services - CS Dir,CURRYS BUSINESS,0.03,0,0.03,Computer Consumables,Computer software stores
Buckinghamshire Council ,31.01.2024,30.01.2024,Children's Services,Education & Childrens Services - CS Dir,CURRYS BUSINESS,480.45,96.09,576.54,Computer Consumables,Computer software stores
Buckinghamshire Council ,31.01.2024,30.01.2024,Children's Services,Education & Childrens Services - CS Dir,CURRYS BUSINESS,0.04,0,0.04,Computer Consumables,Computer software stores
Buckinghamshire Council ,31.01.2024,30.01.2024,Communities,Climate Change & Environment - Community,MARKS&SPENCER PLC,100,0,100,Awaiting Coding,Grocery stores
Buckinghamshire Council ,31.01.2024,30.01.2024,"Planning, Growth & Sustainability",AH&R - PGS Dir,PARKING-CENTRAL,0.6,0,0.6,Other Equipment and Materials,Car parking & garages
Buckinghamshire Council ,31.01.2024,30.01.2024,Deputy Chief Executive,Communities - DCE,WWW.ARGOS.CO.UK,136.62,27.33,163.95,Other Personal Needs,Department stores
Buckinghamshire Council ,31.01.2024,30.01.2024,Deputy Chief Executive,Communities - DCE,WWW.ARGOS.CO.UK,43.29,8.66,51.95,Other Personal Needs,Department stores
Buckinghamshire Council ,31.01.2024,30.01.2024,Deputy Chief Executive,Communities - DCE,WWW.ARGOS.CO.UK,222.45,44.49,266.94,Other Personal Needs,Department stores
Buckinghamshire Council ,31.01.2024,30.01.2024,Deputy Chief Executive,Communities - DCE,WWW.ARGOS.CO.UK,0.01,0,0.01,Other Personal Needs,Department stores
Buckinghamshire Council ,31.01.2024,30.01.2024,Deputy Chief Executive,Communities - DCE,WWW.ARGOS.CO.UK,36.6,7.32,43.92,Other Personal Needs,Department stores
Buckinghamshire Council ,31.01.2024,30.01.2024,Deputy Chief Executive,Communities - DCE,WWW.ARGOS.CO.UK,0.03,0,0.03,Other Personal Needs,Department stores
Buckinghamshire Council ,31.01.2024,30.01.2024,Children's Services,Education & Childrens Services - CS Dir,AMAZON* 204-3013899-63,87.53,0,87.53,Training Materials,Misc. general merchandise
Buckinghamshire Council ,31.01.2024,30.01.2024,Resources,AH&R - Res Dir,GEN REGISTER OFFICE,11,0,11,Miscellaneous (Other)  Expenses,Government services
Buckinghamshire Council ,31.01.2024,30.01.2024,Communities,Transport - Communities Dir,EURO CAR PARTS P,29.99,0,29.99,Vehicle Hire,Automotive parts & accessories
Buckinghamshire Council ,31.01.2024,30.01.2024,Adults and Health,Health & Wellbeing - Adults & Health Dir,BKG*HOTEL AT BOOKING.C,501.3,0,501.3,Other Short Term Support,Travel agencies
Buckinghamshire Council ,31.01.2024,30.01.2024,"Planning, Growth & Sustainability",AH&R - PGS Dir,ASDA SUPERSTORE,17,0,17,General Provisions (Food),Grocery stores
Buckinghamshire Council ,31.01.2024,30.01.2024,Children's Services,Education & Childrens Services - CS Dir,LUTON BC,11,0,11,Sec 20/31: Financial Assistance,Lawn & garden supply/nursery
Buckinghamshire Council ,31.01.2024,30.01.2024,Children's Services,Education & Childrens Services - CS Dir,BUCKINGHAMSHIRE CNCL,11,0,11,Sec 20/31: Financial Assistance,Government services
Buckinghamshire Council ,31.01.2024,30.01.2024,Children's Services,Education & Childrens Services - CS Dir,HM PASSPORT OFFICE,82.5,0,82.5,Sec 20/31: Financial Assistance,Government services
Buckinghamshire Council ,31.01.2024,30.01.2024,Children's Services,Education & Childrens Services - CS Dir,WM MORRISONS STORE,16.76,0,16.76,Cleaning Materials,Grocery stores
Buckinghamshire Council ,31.01.2024,30.01.2024,Resources,AH&R - Res Dir,BKG*HOTEL AT BOOKING.C,55,0,55,Staff Travelling Expenses,Travel agencies
Buckinghamshire Council ,31.01.2024,30.01.2024,Children's Services,Education & Childrens Services - CS Dir,PARTIALLY SIGHTED,35.39,0,35.39,Awaiting Coding,Charitable organisations
Buckinghamshire Council ,31.01.2024,30.01.2024,Children's Services,Education & Childrens Services - CS Dir,CURRYS MILTON KEYNES,9.99,0,9.99,Printing & Stationery,Electronics shops
Buckinghamshire Council ,31.01.2024,30.01.2024,Children's Services,Education & Childrens Services - CS Dir,POST OFFICE COUNTER,10,0,10,Miscellaneous (Other)  Expenses,Postal services
Buckinghamshire Council ,31.01.2024,29.01.2024,Children's Services,Education & Childrens Services - CS Dir,AMAZON.CO.UK,15.98,0,15.98,"Books, Records, Films & Oth Publications",Direct sales companies
Buckinghamshire Council ,31.01.2024,29.01.2024,Resources,AH&R - Res Dir,BUCKINGHAMSHIRE CNCL,11,0,11,Awaiting Coding,Government services
Buckinghamshire Council ,31.01.2024,29.01.2024,Children's Services,Education & Childrens Services - CS Dir,TRAINLINE,156.09,0,156.09,Sec 20/31: Supp for Contact,Passenger railways
Buckinghamshire Council ,31.01.2024,29.01.2024,Children's Services,Education & Childrens Services - CS Dir,AMAZON* 204-3412393-15,29.1,0,29.1,Repair and Maintenance of Equipment,Misc. general merchandise
Buckinghamshire Council ,31.01.2024,29.01.2024,Children's Services,Education & Childrens Services - CS Dir,PREMIER INN,177.97,0,177.97,"Courses, Conference and Seminar Fees",Premier Inn
Buckinghamshire Council ,31.01.2024,29.01.2024,Children's Services,Education & Childrens Services - CS Dir,CURRYS BUSINESS,966.25,193.25,"1,159.50",Computer Consumables,Computer software stores
Buckinghamshire Council ,31.01.2024,29.01.2024,Children's Services,Education & Childrens Services - CS Dir,CURRYS BUSINESS,0.06,0,0.06,Computer Consumables,Computer software stores
Buckinghamshire Council ,31.01.2024,29.01.2024,Children's Services,Education & Childrens Services - CS Dir,WWW.JOHNLEWIS.COM,457.5,91.5,549,Computer Consumables,Department stores
Buckinghamshire Council ,31.01.2024,29.01.2024,Children's Services,Education & Childrens Services - CS Dir,AMAZON.CO.UK,10.7,2.14,12.84,Stationery & Office Supplies,Direct sales companies
Buckinghamshire Council ,31.01.2024,29.01.2024,Children's Services,Education & Childrens Services - CS Dir,AMAZON.CO.UK,7.54,0,7.54,Stationery & Office Supplies,Direct sales companies
Buckinghamshire Council ,31.01.2024,29.01.2024,"Planning, Growth & Sustainability",AH&R - PGS Dir,Prime Video Channels,4.99,0,4.99,Stationery & Office Supplies,Continuous subscriptions
Buckinghamshire Council ,31.01.2024,29.01.2024,Deputy Chief Executive,Communities - DCE,WWW.ARGOS.CO.UK,44.95,8.99,53.94,Other Personal Needs,Department stores
Buckinghamshire Council ,31.01.2024,29.01.2024,Deputy Chief Executive,Communities - DCE,WWW.ARGOS.CO.UK,0.01,0,0.01,Other Personal Needs,Department stores
Buckinghamshire Council ,31.01.2024,29.01.2024,Deputy Chief Executive,Communities - DCE,HARRINGTONS OF READING,78,0,78,Other Personal Needs,Fuel dealers
Buckinghamshire Council ,31.01.2024,29.01.2024,Children's Services,Education & Childrens Services - CS Dir,BUCKINGHAM HOTELS,"1,890.00",0,"1,890.00",Sec 17: Accommodation,"Hotels, motels & resorts"
Buckinghamshire Council ,31.01.2024,29.01.2024,Communities,Transport - Communities Dir,EURO CAR PARTS,33.99,0,33.99,Vehicle Hire,Automotive parts & accessories
Buckinghamshire Council ,31.01.2024,29.01.2024,Children's Services,Education & Childrens Services - CS Dir,UTILITA ENERGY LIMITED,600,0,600,General Repairs & Maintenance,Utilities
Buckinghamshire Council ,31.01.2024,29.01.2024,"Planning, Growth & Sustainability",AH&R - PGS Dir,AMAZON* 204-0419533-34,-3.19,0,-3.19,Other Equipment and Materials,Misc. general merchandise
Buckinghamshire Council ,31.01.2024,29.01.2024,Children's Services,Education & Childrens Services - CS Dir,DOMINOS PIZZA,49.25,0,49.25,Activities & General Recreation,Fast food restaurants
Buckinghamshire Council ,31.01.2024,29.01.2024,Communities,Culture & Leisure - Communities Dir,HIGH SPEED TRAINING,37.2,0,37.2,Awaiting Coding,Schools
Buckinghamshire Council ,31.01.2024,29.01.2024,Communities,Climate Change & Environment - Community,AMZNMKTPLACE,113.98,0,113.98,Equipment,Miscellaneous retail
Buckinghamshire Council ,31.01.2024,29.01.2024,Children's Services,Education & Childrens Services - CS Dir,AMZNMktplace,347.98,0,347.98,Awaiting Coding,Miscellaneous retail
Buckinghamshire Council ,31.01.2024,29.01.2024,"Planning, Growth & Sustainability",AH&R - PGS Dir,UK ELECTRICALSUPPLIERS,269,53.8,322.8,General Repairs & Maintenance,Electrical parts & equipment
Buckinghamshire Council ,31.01.2024,29.01.2024,Children's Services,Education & Childrens Services - CS Dir,STUDENT ROOST,791.29,0,791.29,Leaving Care - Higher Education Supp,Estate Agents & Property Management
Buckinghamshire Council ,31.01.2024,29.01.2024,Adults and Health,Health & Wellbeing - Adults & Health Dir,TESCO STORES 5135,187.83,0,187.83,General Provisions (Food),Grocery stores
Buckinghamshire Council ,31.01.2024,29.01.2024,"Planning, Growth & Sustainability",Planning & Regeneration - PGS,TFL TRAVEL CH,8.1,0,8.1,Staff Travelling Expenses,Local commuter transport
Buckinghamshire Council ,31.01.2024,29.01.2024,"Planning, Growth & Sustainability",Planning & Regeneration - PGS,ARRIVA THE SHIRES LIMITED,2.3,0,2.3,Staff Travelling Expenses,"Buses, charter & tour"
Buckinghamshire Council ,31.01.2024,29.01.2024,Resources,AH&R - Res Dir,LINKEDIN ADS 9846619994,103.79,0,103.79,Permanent Recruitment Costs,Advertising services
Buckinghamshire Council ,31.01.2024,29.01.2024,Children's Services,Education & Childrens Services - CS Dir,IKEA LTD SHOP ONLINE,247,0,247,Furniture,Furniture & home furnishing
Buckinghamshire Council ,31.01.2024,29.01.2024,Adults and Health,Health & Wellbeing - Adults & Health Dir,ASDA GROCERIES ONLINE,95.76,0,95.76,General Provisions (Food),Grocery stores
Buckinghamshire Council ,31.01.2024,29.01.2024,Children's Services,Education & Childrens Services - CS Dir,ARRIVA UK BUS,4,0,4,Sec 20/31: Supp for Contact,"Buses, charter & tour"
Buckinghamshire Council ,31.01.2024,29.01.2024,Children's Services,Education & Childrens Services - CS Dir,FIRST BUS - WEB,7.8,0,7.8,Sec 20/31: Supp for Contact,"Buses, charter & tour"
Buckinghamshire Council ,31.01.2024,29.01.2024,Children's Services,Education & Childrens Services - CS Dir,TRAINLINE,23.59,0,23.59,Sec 20/31: Supp for Contact,Passenger railways
Buckinghamshire Council ,31.01.2024,29.01.2024,Communities,Transport - Communities Dir,PAYPAL,125.99,0,125.99,Awaiting Coding,Men/boys clothing shops
Buckinghamshire Council ,31.01.2024,29.01.2024,Children's Services,Education & Childrens Services - CS Dir,TRAVELODGE GB0000,251,0,251,Sec 17: Accommodation,Travelodge
Buckinghamshire Council ,31.01.2024,29.01.2024,Resources,AH&R - Res Dir,FASTHOSTS,8.4,0,8.4,Computer Software Licences & Purchase,Computer network information services
Buckinghamshire Council ,31.01.2024,28.01.2024,Deputy Chief Executive,AH&R- DCE Dir,AMZNMKTPLACE,97.98,0,97.98,Printing & Stationery,Miscellaneous retail
Buckinghamshire Council ,31.01.2024,28.01.2024,"Planning, Growth & Sustainability",Planning & Regeneration - PGS,TRAINLINE,19.74,0,19.74,Staff Travelling Expenses,Passenger railways
Buckinghamshire Council ,31.01.2024,28.01.2024,"Planning, Growth & Sustainability",Planning & Regeneration - PGS,UBR* PENDING.UBER.COM,6.95,0,6.95,Staff Travelling Expenses,Taxicabs & limousines
Buckinghamshire Council ,31.01.2024,28.01.2024,"Planning, Growth & Sustainability",Planning & Regeneration - PGS,TFL TRAVEL CH,9.6,0,9.6,Staff Travelling Expenses,Local commuter transport
Buckinghamshire Council ,31.01.2024,28.01.2024,"Planning, Growth & Sustainability",Climate Change & Environment - PGS,ZOOM.US 888-799-9666,129.9,0,129.9,Software Support,Phone services
Buckinghamshire Council ,31.01.2024,27.01.2024,Communities,Culture & Leisure - Communities Dir,FACEBK HHEEZVXZ92,7,0,7,Events Expenditure,Advertising services
Buckinghamshire Council ,31.01.2024,27.01.2024,Children's Services,Education & Childrens Services - CS Dir,WM MORRISONS STORE,20.22,0,20.22,Awaiting Coding,Grocery stores
Buckinghamshire Council ,31.01.2024,27.01.2024,Deputy Chief Executive,AH&R- DCE Dir,LINKEDIN ADS 9841104384,16.43,0,16.43,Interpreters Fees,Advertising services
Buckinghamshire Council ,31.01.2024,27.01.2024,Resources,AH&R - Res Dir,LINKEDIN ADS 9841631164,15.79,0,15.79,Permanent Recruitment Costs,Advertising services
Buckinghamshire Council ,31.01.2024,27.01.2024,Children's Services,Education & Childrens Services - CS Dir,AMAZON PRIME,8.99,0,8.99,Stationery & Office Supplies,Continuous subscriptions
Buckinghamshire Council ,31.01.2024,27.01.2024,"Planning, Growth & Sustainability",Housing & Homelessness & Regulatory PGS,HPI INSTANT INK UK,9.99,0,9.99,Furniture,Electronics shops
Buckinghamshire Council ,31.01.2024,26.01.2024,Deputy Chief Executive,AH&R- DCE Dir,PAYPAL,401.2,0,401.2,Awaiting Coding,Variety stores
Buckinghamshire Council ,31.01.2024,26.01.2024,Deputy Chief Executive,AH&R- DCE Dir,PAYPAL,9,0,9,Awaiting Coding,Variety stores
Buckinghamshire Council ,31.01.2024,26.01.2024,Resources,AH&R - Res Dir,A1 Taxi Service,420,0,420,Staff Travelling Expenses,Taxicabs & limousines
Buckinghamshire Council ,31.01.2024,26.01.2024,Resources,AH&R - Res Dir,THE OXFORDSHIRE TAXI COMP,800,0,800,Staff Travelling Expenses,Taxicabs & limousines
Buckinghamshire Council ,31.01.2024,26.01.2024,Resources,AH&R - Res Dir,MYTRIPBUS* REDLINE BUS,8,0,8,Sec 20/31: Supp for Contact,
Buckinghamshire Council ,31.01.2024,26.01.2024,Resources,AH&R - Res Dir,MYTRIPBUS* REDLINE BUS,8,0,8,Sec 20/31: Supp for Contact,
Buckinghamshire Council ,31.01.2024,26.01.2024,Resources,AH&R - Res Dir,MYTRIPBUS* REDLINE BUS,8,0,8,Sec 20/31: Supp for Contact,
Buckinghamshire Council ,31.01.2024,26.01.2024,Resources,AH&R - Res Dir,FIRST BUS - WEB,15.6,0,15.6,Sec 20/31: Supp for Contact,"Buses, charter & tour"
Buckinghamshire Council ,31.01.2024,26.01.2024,Resources,AH&R - Res Dir,FIRST BUS - WEB,7.8,0,7.8,Sec 20/31: Supp for Contact,"Buses, charter & tour"
Buckinghamshire Council ,31.01.2024,26.01.2024,Resources,AH&R - Res Dir,TRAVELODGE GB0000,56.01,0,56.01,Sec 20/31: Supp for Contact,Travelodge
Buckinghamshire Council ,31.01.2024,26.01.2024,Resources,AH&R - Res Dir,TRAINLINE,164.49,0,164.49,Sec 20/31: Supp for Contact,Passenger railways
Buckinghamshire Council ,31.01.2024,26.01.2024,Children's Services,Education & Childrens Services - CS Dir,AMAZON* 205-3278930-91,3.4,0,3.4,Leaving Care - Grants for Care Leavers,Misc. general merchandise
Buckinghamshire Council ,31.01.2024,26.01.2024,Children's Services,Education & Childrens Services - CS Dir,WWW.THERANGE.CO.UK,27.53,0,27.53,Leaving Care - Grants for Care Leavers,Misc. home furnishing
Buckinghamshire Council ,31.01.2024,26.01.2024,Deputy Chief Executive,Communities - DCE,WWW.ARGOS.CO.UK,55.95,0,55.95,Awaiting Coding,Department stores
Buckinghamshire Council ,31.01.2024,26.01.2024,Deputy Chief Executive,Communities - DCE,WWW.ARGOS.CO.UK,451.95,0,451.95,Awaiting Coding,Department stores
Buckinghamshire Council ,31.01.2024,26.01.2024,Deputy Chief Executive,Communities - DCE,AO RETAIL LIMITED,424,0,424,Awaiting Coding,Household appliance stores
Buckinghamshire Council ,31.01.2024,26.01.2024,Deputy Chief Executive,Communities - DCE,AO RETAIL LIMITED,608,0,608,Awaiting Coding,Household appliance stores
Buckinghamshire Council ,31.01.2024,26.01.2024,Children's Services,Education & Childrens Services - CS Dir,A1 TAXI SERVICE,"1,400.00",280,"1,680.00",Sec 20/31: Transport,Taxicabs & limousines
Buckinghamshire Council ,31.01.2024,26.01.2024,Children's Services,Education & Childrens Services - CS Dir,TRAVELODGE GB0000,110.99,0,110.99,"Courses, Conference and Seminar Fees",Travelodge
Buckinghamshire Council ,31.01.2024,26.01.2024,Children's Services,Education & Childrens Services - CS Dir,PREMIER INN,57,0,57,Sec 20/31: Supp for Contact,Premier Inn
Buckinghamshire Council ,31.01.2024,26.01.2024,Children's Services,Education & Childrens Services - CS Dir,TRAVELODGE GB0000,90.01,0,90.01,Sec 20/31: Supp for Contact,Travelodge
Buckinghamshire Council ,31.01.2024,26.01.2024,Deputy Chief Executive,Communities - DCE,WWW.CERTASENERGY.C,380.78,0,380.78,Other Personal Needs,Fuel dealers
Buckinghamshire Council ,31.01.2024,26.01.2024,Children's Services,Education & Childrens Services - CS Dir,AMZNMKTPLACE,-4.87,0,-4.87,Training Materials,Miscellaneous retail
Buckinghamshire Council ,31.01.2024,26.01.2024,"Planning, Growth & Sustainability",AH&R - PGS Dir,AMAZON* 204-0419533-34,3.19,0,3.19,Other Equipment and Materials,Misc. general merchandise
Buckinghamshire Council ,31.01.2024,26.01.2024,Communities,Special Expenses,JEWSON LTD,252.49,42.08,252.49,General Repairs & Maintenance,Timber & building supplies
Buckinghamshire Council ,31.01.2024,26.01.2024,Adults and Health,Communities - Adults & Health,HOSTED.CO.UK,127.83,0,127.83,Telephones,
Buckinghamshire Council ,31.01.2024,26.01.2024,Communities,Climate Change & Environment - Community,SP MEDISAVE.CO.UK,28.87,0,28.87,Equipment,Misc. general merchandise
Buckinghamshire Council ,31.01.2024,26.01.2024,Communities,Climate Change & Environment - Community,SECURITYSAFETYPRODUCTS,23.58,0,23.58,Equipment,Detective & security services
Buckinghamshire Council ,31.01.2024,26.01.2024,Communities,Climate Change & Environment - Community,PAYPAL,88.74,0,88.74,Equipment,Variety stores
Buckinghamshire Council ,31.01.2024,26.01.2024,Children's Services,Education & Childrens Services - CS Dir,THE BAR MODEL COMPANY,49,0,49,Miscellaneous (Other)  Expenses,Schools
Buckinghamshire Council ,31.01.2024,26.01.2024,Communities,artnerships - Communities,TSOHOST,85.34,0,85.34,Miscellaneous (Other)  Expenses,Continuous subscriptions
Buckinghamshire Council ,31.01.2024,26.01.2024,Children's Services,Education & Childrens Services - CS Dir,NEALES TAXIS LTD,"1,344.00",0,"1,344.00",Sec 20/31: Transport,Taxicabs & limousines
Buckinghamshire Council ,31.01.2024,26.01.2024,Children's Services,Education & Childrens Services - CS Dir,AMAZON* 204-7233697-87,69.97,0,69.97,Equipment (including storage),Misc. general merchandise
Buckinghamshire Council ,31.01.2024,26.01.2024,Resources,AH&R - Res Dir,C2E879200525M UKVI,"1,239.00",0,"1,239.00",Professional Services (non curriculum) - External,Government services
Buckinghamshire Council ,31.01.2024,26.01.2024,"Planning, Growth & Sustainability",Planning & Regeneration - PGS,AMAZON* 204-2407100-94,49.19,0,49.19,IT Equipment Purchase,Misc. general merchandise
Buckinghamshire Council ,31.01.2024,26.01.2024,Resources,AH&R - Res Dir,LINKEDIN ADS 9837585414,118.4,0,118.4,Permanent Recruitment Costs,Advertising services
Buckinghamshire Council ,31.01.2024,26.01.2024,Children's Services,Education & Childrens Services - CS Dir,TRAVELODGE GB0000,122.99,0,122.99,"Courses, Conference and Seminar Fees",Travelodge
Buckinghamshire Council ,31.01.2024,26.01.2024,Children's Services,Education & Childrens Services - CS Dir,AMAZON.CO.UK,12.9,0,12.9,Stationery & Office Supplies,Direct sales companies
Buckinghamshire Council ,31.01.2024,26.01.2024,Children's Services,Education & Childrens Services - CS Dir,ABSOLUTELY KARTING (MAIDE,63.49,0,63.49,Activities & General Recreation,"Member clubs, sport, recreation & golf"
Buckinghamshire Council ,31.01.2024,26.01.2024,,,PSHE ASSOCIATION,95,0,95,"Courses, Conference and Seminar Fees",Schools
Buckinghamshire Council ,31.01.2024,25.01.2024,"Planning, Growth & Sustainability",AH&R - PGS Dir,AMZNMKTPLACE,20,0,20,Other Equipment and Materials,Miscellaneous retail
Buckinghamshire Council ,31.01.2024,25.01.2024,Resources,AH&R - Res Dir,THE OXFORDSHIRE TAXI COMP,805,0,805,Staff Travelling Expenses,Taxicabs & limousines
Buckinghamshire Council ,31.01.2024,25.01.2024,"Planning, Growth & Sustainability",Housing & Homelessness & Regulatory PGS,THE BELL AYLESBURY,601,0,601,Homelessness,"Hotels, motels & resorts"
Buckinghamshire Council ,31.01.2024,25.01.2024,Adults and Health,Health & Wellbeing - Adults & Health Dir,ASPIRE LEADERSHIP LTD,460,92,552,Stationery & Office Supplies,Misc business services
Buckinghamshire Council ,31.01.2024,25.01.2024,Adults and Health,Health & Wellbeing - Adults & Health Dir,ASPIRE LEADERSHIP LTD,460,92,552,Stationery & Office Supplies,Misc business services
Buckinghamshire Council ,31.01.2024,25.01.2024,Children's Services,Education & Childrens Services - CS Dir,IKEA LTD SHOP ONLINE,338,0,338,Leaving Care - Grants for Care Leavers,Furniture & home furnishing
Buckinghamshire Council ,31.01.2024,25.01.2024,Deputy Chief Executive,Communities - DCE,AO RETAIL LIMITED,424,0,424,Awaiting Coding,Household appliance stores
Buckinghamshire Council ,31.01.2024,25.01.2024,Deputy Chief Executive,Communities - DCE,WWW.ARGOS.CO.UK,266.95,0,266.95,Awaiting Coding,Department stores
Buckinghamshire Council ,31.01.2024,25.01.2024,Communities,Culture & Leisure - Communities Dir,FACEBK TYQNZVPZ92,7,0,7,Events Expenditure,Advertising services
Buckinghamshire Council ,31.01.2024,25.01.2024,Children's Services,Education & Childrens Services - CS Dir,DIRECT CARS,70,0,70,Sec 20/31: Transport,Taxicabs & limousines
Buckinghamshire Council ,31.01.2024,25.01.2024,"Planning, Growth & Sustainability",AH&R - PGS Dir,SAFETY SIGNS 4 LESS,68,0,68,Other Equipment and Materials,Misc commercial machines equipment
Buckinghamshire Council ,31.01.2024,25.01.2024,Deputy Chief Executive,Communities - DCE,AO RETAIL LIMITED,880.83,176.17,"1,057.00",Other Personal Needs,Household appliance stores
Buckinghamshire Council ,31.01.2024,25.01.2024,Deputy Chief Executive,Communities - DCE,A W SMITH & PARTNER,115,0,115,Other Personal Needs,Hardware stores
Buckinghamshire Council ,31.01.2024,25.01.2024,Communities,Transport - Communities Dir,EURO CAR PARTS,20.49,0,20.49,Vehicle Hire,Automotive parts & accessories
Buckinghamshire Council ,31.01.2024,25.01.2024,Adults and Health,Health & Wellbeing - Adults & Health Dir,AMZNMKTPLACE,11.98,0,11.98,Health & Safety Supplies & Services,Miscellaneous retail
Buckinghamshire Council ,31.01.2024,25.01.2024,Resources,Communities - Resources,AMZNMKTPLACE,98.62,0,98.62,Emergency Expenses,Miscellaneous retail
Buckinghamshire Council ,31.01.2024,25.01.2024,"Planning, Growth & Sustainability",AH&R - PGS Dir,WWW.SCREWFIX.COM,5.84,0,5.84,Other Equipment and Materials,Timber & building supplies
Buckinghamshire Council ,31.01.2024,25.01.2024,Children's Services,Education & Childrens Services - CS Dir,POUNDLAND LTD - 1301,37.5,0,37.5,Project Funding,Discount stores
Buckinghamshire Council ,31.01.2024,25.01.2024,Children's Services,Education & Childrens Services - CS Dir,MARKS&SPENCER PLC SA,48,0,48,Project Funding,Grocery stores
Buckinghamshire Council ,31.01.2024,25.01.2024,Communities,Culture & Leisure - Communities Dir,TESCO STORES 2564,10,0,10,Awaiting Coding,Grocery stores
Buckinghamshire Council ,31.01.2024,25.01.2024,Communities,Culture & Leisure - Communities Dir,LORDS OF GERARDS C,12.99,0,12.99,Awaiting Coding,Hardware stores
Buckinghamshire Council ,31.01.2024,25.01.2024,Children's Services,Education & Childrens Services - CS Dir,AMAZON.CO.UK,3.99,0,3.99,Awaiting Coding,
Buckinghamshire Council ,31.01.2024,25.01.2024,Children's Services,Education & Childrens Services - CS Dir,AMAZON* 204-7792197-04,119.98,0,119.98,Awaiting Coding,Misc. general merchandise
Buckinghamshire Council ,31.01.2024,25.01.2024,Children's Services,Education & Childrens Services - CS Dir,ASDA GROCERIES ONLINE,41.87,0,41.87,Awaiting Coding,Grocery stores
Buckinghamshire Council ,31.01.2024,25.01.2024,Children's Services,Education & Childrens Services - CS Dir,ASDA GROCERIES ONLINE,8.35,0,8.35,Awaiting Coding,Grocery stores
Buckinghamshire Council ,31.01.2024,25.01.2024,Communities,Culture & Leisure - Communities Dir,EURO CAR PARTS P,43.6,8.72,52.32,Petrol,Automotive parts & accessories
Buckinghamshire Council ,31.01.2024,25.01.2024,Communities,Culture & Leisure - Communities Dir,EURO CAR PARTS P,0.03,0,0.03,Petrol,Automotive parts & accessories
Buckinghamshire Council ,31.01.2024,25.01.2024,"Planning, Growth & Sustainability",AH&R - PGS Dir,HALFORDS 0529,32.96,0,32.96,Awaiting Coding,"Bicycle shops, sales & service"
Buckinghamshire Council ,31.01.2024,25.01.2024,Children's Services,Education & Childrens Services - CS Dir,HOLIDAY INN AYLESB,147,0,147,"Courses, Conference and Seminar Fees","Hotels, motels & resorts"
Buckinghamshire Council ,31.01.2024,25.01.2024,Children's Services,Education & Childrens Services - CS Dir,ASDA SUPERSTORE,47.29,0,47.29,General Provisions (Food),Grocery stores
Buckinghamshire Council ,31.01.2024,25.01.2024,"Planning, Growth & Sustainability",Planning & Regeneration - PGS,A.L.S PRESENTATION LTD,76.02,0,76.02,Printing & Stationery,Publishing & printing services
Buckinghamshire Council ,31.01.2024,25.01.2024,"Planning, Growth & Sustainability",Housing & Homelessness & Regulatory PGS,PREMIER INN,556,0,556,Homelessness,Premier Inn
Buckinghamshire Council ,31.01.2024,25.01.2024,Children's Services,Education & Childrens Services - CS Dir,PAYPAL,251.98,0,251.98,Leaving Care - Grants for Care Leavers,Variety stores
Buckinghamshire Council ,31.01.2024,25.01.2024,Children's Services,Education & Childrens Services - CS Dir,PAYPAL,391.95,0,391.95,Leaving Care - Grants for Care Leavers,Variety stores
Buckinghamshire Council ,31.01.2024,25.01.2024,"Planning, Growth & Sustainability",Partnership Climate Change & Envir - PGS,WP-CRANFIELD UNIVE,"1,305.60",0,"1,305.60",Software Rental (Annual),Professional services
Buckinghamshire Council ,31.01.2024,25.01.2024,"Planning, Growth & Sustainability",Partnership Climate Change & Envir - PGS,WP-CRANFIELD UNIVE,"1,252.80",0,"1,252.80",Software Rental (Annual),Professional services
Buckinghamshire Council ,31.01.2024,24.01.2024,Deputy Chief Executive,AH&R- DCE Dir,PAYPAL,-25,0,-25,Awaiting Coding,Electronics shops
Buckinghamshire Council ,31.01.2024,24.01.2024,Children's Services,Education & Childrens Services - CS Dir,HM PASSPORT OFFICE,53.5,0,53.5,Sec 20/31: Transport,Government services
Buckinghamshire Council ,31.01.2024,24.01.2024,Children's Services,Education & Childrens Services - CS Dir,HM PASSPORT OFFICE,53.5,0,53.5,Sec 20/31: Transport,Government services
Buckinghamshire Council ,31.01.2024,24.01.2024,Children's Services,Education & Childrens Services - CS Dir,BUCKINGHAMSHIRE CNCL,11,0,11,Sec 20/31: Transport,Government services
Buckinghamshire Council ,31.01.2024,24.01.2024,Communities,Climate Change & Environment - Community,GWR OXFORD SST,85.3,0,85.3,Staff Travelling Expenses,Passenger railways
Buckinghamshire Council ,31.01.2024,24.01.2024,Children's Services,Education & Childrens Services - CS Dir,AMZNMKTPLACE,8.98,0,8.98,"Workshop - Materials,Tools & Equipment",Miscellaneous retail
Buckinghamshire Council ,31.01.2024,24.01.2024,Children's Services,Education & Childrens Services - CS Dir,TRAINLINE,75.44,0,75.44,Sec 20/31: Supp for Contact,Passenger railways
Buckinghamshire Council ,31.01.2024,24.01.2024,Children's Services,Education & Childrens Services - CS Dir,TRAINLINE,25.39,0,25.39,Leaving Care - Transport,Passenger railways
Buckinghamshire Council ,31.01.2024,24.01.2024,Deputy Chief Executive,Communities - DCE,WWW.ARGOS.CO.UK,78.29,15.66,93.95,Other Personal Needs,Department stores
Buckinghamshire Council ,31.01.2024,24.01.2024,Deputy Chief Executive,Communities - DCE,WWW.ARGOS.CO.UK,38.95,0,38.95,Other Personal Needs,Department stores
Buckinghamshire Council ,31.01.2024,24.01.2024,Deputy Chief Executive,Communities - DCE,WWW.ARGOS.CO.UK,37.45,7.49,44.94,Other Personal Needs,Department stores
Buckinghamshire Council ,31.01.2024,24.01.2024,Deputy Chief Executive,Communities - DCE,WWW.ARGOS.CO.UK,0.01,0,0.01,Other Personal Needs,Department stores
Buckinghamshire Council ,31.01.2024,24.01.2024,Deputy Chief Executive,Communities - DCE,WWW.ARGOS.CO.UK,-38.95,0,-38.95,Awaiting Coding,Department stores
Buckinghamshire Council ,31.01.2024,24.01.2024,Children's Services,Education & Childrens Services - CS Dir,PREMIER INN,76,0,76,Sec 20/31: Supp for Contact,Premier Inn
Buckinghamshire Council ,31.01.2024,24.01.2024,Deputy Chief Executive,Leader - DCE,PUREGUSTO COFFEE COMPANY,62.17,0,62.17,General Provisions (Food),Misc. general merchandise
Buckinghamshire Council ,31.01.2024,24.01.2024,Communities,Climate Change & Environment - Community,DVLA VEHICLE TAX,322.5,0,322.5,Awaiting Coding,Government services
Buckinghamshire Council ,31.01.2024,24.01.2024,Communities,Climate Change & Environment - Community,DVLA VEHICLE TAX,322.5,0,322.5,Awaiting Coding,Government services
Buckinghamshire Council ,31.01.2024,24.01.2024,Communities,Climate Change & Environment - Community,DVLA VEHICLE TAX,322.5,0,322.5,Awaiting Coding,Government services
Buckinghamshire Council ,31.01.2024,24.01.2024,Communities,Climate Change & Environment - Community,DVLA VEHICLE TAX,452.5,0,452.5,Awaiting Coding,Government services
Buckinghamshire Council ,31.01.2024,24.01.2024,Communities,Climate Change & Environment - Community,DVLA VEHICLE TAX,322.5,0,322.5,Awaiting Coding,Government services
Buckinghamshire Council ,31.01.2024,24.01.2024,Communities,Climate Change & Environment - Community,DVLA VEHICLE TAX,322.5,0,322.5,Awaiting Coding,Government services
Buckinghamshire Council ,31.01.2024,24.01.2024,"Planning, Growth & Sustainability",Housing & Homelessness & Regulatory PGS,LAND REGISTRY ECOM CCC,3,0,3,Homelessness,Government services
Buckinghamshire Council ,31.01.2024,24.01.2024,"Planning, Growth & Sustainability",Housing & Homelessness & Regulatory PGS,LAND REGISTRY ECOM CCC,3,0,3,Homelessness,Government services
Buckinghamshire Council ,31.01.2024,24.01.2024,"Planning, Growth & Sustainability",Housing & Homelessness & Regulatory PGS,LAND REGISTRY ECOM CCC,3,0,3,Homelessness,Government services
Buckinghamshire Council ,31.01.2024,24.01.2024,"Planning, Growth & Sustainability",Housing & Homelessness & Regulatory PGS,LAND REGISTRY ECOM CCC,3,0,3,Homelessness,Government services
Buckinghamshire Council ,31.01.2024,24.01.2024,"Planning, Growth & Sustainability",Housing & Homelessness & Regulatory PGS,LAND REGISTRY ECOM CCC,3,0,3,Homelessness,Government services
Buckinghamshire Council ,31.01.2024,24.01.2024,Children's Services,Education & Childrens Services - CS Dir,AMAZON.CO.UK,44.2,0,44.2,"Books, Records, Films & Oth Publications",Direct sales companies
Buckinghamshire Council ,31.01.2024,24.01.2024,Children's Services,Education & Childrens Services - CS Dir,DIRECT CARS,70,0,70,Sec 20/31: Transport,Taxicabs & limousines
Buckinghamshire Council ,31.01.2024,24.01.2024,Resources,Communities - Resources,AMZNMKTPLACE,11.66,0,11.66,Emergency Expenses,Miscellaneous retail
Buckinghamshire Council ,31.01.2024,24.01.2024,Resources,Communities - Resources,AMZNMKTPLACE,40.53,0,40.53,Emergency Expenses,Miscellaneous retail
Buckinghamshire Council ,31.01.2024,24.01.2024,"Planning, Growth & Sustainability",AH&R - PGS Dir,GRANT AND STONE,134.4,0,134.4,General Repairs & Maintenance,Hardware stores
Buckinghamshire Council ,31.01.2024,24.01.2024,"Planning, Growth & Sustainability",AH&R - PGS Dir,SCREWFIX HIGH WYCOMBE CRE,21.98,0,21.98,General Repairs & Maintenance,Timber & building supplies
Buckinghamshire Council ,31.01.2024,24.01.2024,Adults and Health,Health & Wellbeing - Adults & Health Dir,BKG*HOTEL AT BOOKING.C,365.4,0,365.4,Other Short Term Support,Travel agencies
Buckinghamshire Council ,31.01.2024,24.01.2024,Children's Services,Education & Childrens Services - CS Dir,ASDA GEORGE COM LEEDS,-5,0,-5,Project Funding,Grocery stores
Buckinghamshire Council ,31.01.2024,24.01.2024,"Planning, Growth & Sustainability",AH&R - PGS Dir,ASDA SUPERSTORE,14.5,0,14.5,General Provisions (Food),Grocery stores
Buckinghamshire Council ,31.01.2024,24.01.2024,Communities,artnerships - Communities,TRAINLINE,48.59,0,48.59,Staff Travelling Expenses,Passenger railways
Buckinghamshire Council ,31.01.2024,24.01.2024,Children's Services,Education & Childrens Services - CS Dir,SAINSBURYS S/MKTS,1.45,0,1.45,Support for Foster Carers,Grocery stores
Buckinghamshire Council ,31.01.2024,24.01.2024,Children's Services,Education & Childrens Services - CS Dir,Amazon.co.uk,230.55,0,230.55,Stationery & Office Supplies,Direct sales companies
Buckinghamshire Council ,31.01.2024,24.01.2024,Communities,artnerships - Communities,BETSEY WYNNE,885.61,0,885.61,Subsistence,Restaurants
Buckinghamshire Council ,31.01.2024,24.01.2024,"Planning, Growth & Sustainability",Housing & Homelessness & Regulatory PGS,AO RETAIL LIMITED,434,0,434,Furniture,Household appliance stores
Buckinghamshire Council ,31.01.2024,24.01.2024,"Planning, Growth & Sustainability",Planning & Regeneration - PGS,UBR* PENDING.UBER.COM,6.92,0,6.92,Staff Travelling Expenses,Taxicabs & limousines
Buckinghamshire Council ,31.01.2024,24.01.2024,Communities,Culture & Leisure - Communities Dir,AMZNMKTPLACE,-79.99,0,-79.99,Events Expenditure,Miscellaneous retail
Buckinghamshire Council ,31.01.2024,24.01.2024,Children's Services,Education & Childrens Services - CS Dir,HOLIDAY INN AYLESB,144.53,0,144.53,"Courses, Conference and Seminar Fees","Hotels, motels & resorts"
Buckinghamshire Council ,31.01.2024,24.01.2024,Children's Services,Education & Childrens Services - CS Dir,EA DIGITICKETS CORAL REEF,12.35,0,12.35,Activities & General Recreation,Tourist attractions and exhibitions
Buckinghamshire Council ,31.01.2024,24.01.2024,"Planning, Growth & Sustainability",Housing & Homelessness & Regulatory PGS,WWW.ARGOS.CO.UK,769.95,0,769.95,Furniture,Department stores
Buckinghamshire Council ,31.01.2024,24.01.2024,Adults and Health,Health & Wellbeing - Adults & Health Dir,ASDA GROCERIES ONLINE,-2,0,-2,General Provisions (Food),Grocery stores
Buckinghamshire Council ,31.01.2024,24.01.2024,Communities,Transport - Communities Dir,PAYPAL,-57.97,0,-57.97,Awaiting Coding,Men/boys clothing shops
Buckinghamshire Council ,31.01.2024,24.01.2024,Communities,Housing & Homelessness & Regulatory PGS,CHARTERED INSTITUTE OF EN,193,0,193,Professional Subscriptions re Employees,Charitable organisations
Buckinghamshire Council ,31.01.2024,24.01.2024,Communities,Housing & Homelessness & Regulatory PGS,CHARTERED INSTITUTE OF EN,258,0,258,Professional Subscriptions re Employees,Charitable organisations
Buckinghamshire Council ,31.01.2024,24.01.2024,Deputy Chief Executive,AH&R- DCE Dir,PLAZA CARS,40,0,40,Staff Travelling Expenses,Taxicabs & limousines
Buckinghamshire Council ,31.01.2024,23.01.2024,Communities,Climate Change & Environment - Community,AMZNMKTPLACE,36.9,0,36.9,Equipment,Miscellaneous retail
Buckinghamshire Council ,31.01.2024,23.01.2024,Resources,AH&R - Res Dir,PADDLE.NET* TEAMGANTT,57.47,0,57.47,Computer Software Licences & Purchase,
Buckinghamshire Council ,31.01.2024,23.01.2024,Children's Services,Education & Childrens Services - CS Dir,AA TAXIS,40,0,40,Sec 20/31: Transport,Taxicabs & limousines
Buckinghamshire Council ,31.01.2024,23.01.2024,Children's Services,Education & Childrens Services - CS Dir,TESCO GIFT CARD,300,0,300,Miscellaneous (Other)  Expenses,Grocery stores
Buckinghamshire Council ,31.01.2024,23.01.2024,Children's Services,Education & Childrens Services - CS Dir,TESCO STORES 2038,141.85,0,141.85,Awaiting Coding,Grocery stores
Buckinghamshire Council ,31.01.2024,23.01.2024,Deputy Chief Executive,Communities - DCE,AO RETAIL LIMITED,282.5,56.5,339,Other Personal Needs,Household appliance stores
Buckinghamshire Council ,31.01.2024,23.01.2024,Communities,Culture & Leisure - Communities Dir,FACEBK QLDGXVPZ92,7,0,7,Events Expenditure,Advertising services
Buckinghamshire Council ,31.01.2024,23.01.2024,Communities,Culture & Leisure - Communities Dir,AMAZON.CO.UK,33.3,6.66,39.96,Protective Clothing & Uniforms,Direct sales companies
Buckinghamshire Council ,31.01.2024,23.01.2024,Communities,Culture & Leisure - Communities Dir,AMAZON.CO.UK,0.02,0,0.02,Protective Clothing & Uniforms,Direct sales companies
Buckinghamshire Council ,31.01.2024,23.01.2024,Children's Services,Education & Childrens Services - CS Dir,PREMIER INN,70.83,14.17,85,Sec 20/31: Specialist Services,Premier Inn
Buckinghamshire Council ,31.01.2024,23.01.2024,"Planning, Growth & Sustainability",AH&R - PGS Dir,CLEAPSS,160,0,160,Course Fees & Post Entry Training,Schools
Buckinghamshire Council ,31.01.2024,23.01.2024,Deputy Chief Executive,Communities - DCE,WWW.ARGOS.CO.UK,161.62,32.33,193.95,Other Personal Needs,Department stores
Buckinghamshire Council ,31.01.2024,23.01.2024,Deputy Chief Executive,Communities - DCE,AO RETAIL LIMITED,174.16,34.84,209,Other Personal Needs,Household appliance stores
Buckinghamshire Council ,31.01.2024,23.01.2024,"Planning, Growth & Sustainability",AH&R - PGS Dir,AMZNMKTPLACE,11.9,0,11.9,General Repairs & Maintenance,Miscellaneous retail
Buckinghamshire Council ,31.01.2024,23.01.2024,Children's Services,Education & Childrens Services - CS Dir,MARKS&SPENCER PLC SA,36.25,0,36.25,"Exp of School, Club & College Activities",Grocery stores
Buckinghamshire Council ,31.01.2024,23.01.2024,Communities,Culture & Leisure - Communities Dir,WWW.GRISPORT.CO.UK,75,0,75,Protective Clothing & Uniforms,Shoe shops
Buckinghamshire Council ,31.01.2024,23.01.2024,Children's Services,Education & Childrens Services - CS Dir,AMZNMKTPLACE,11.77,0,11.77,Stationery & Office Supplies,Miscellaneous retail
Buckinghamshire Council ,31.01.2024,23.01.2024,Children's Services,artnerships - Children's Services,WAITROSE,2.71,0,2.71,"Courses, Conference and Seminar Fees",Grocery stores
Buckinghamshire Council ,31.01.2024,23.01.2024,Children's Services,Education & Childrens Services - CS Dir,TRAINLINE,45.74,0,45.74,Staff Travelling Expenses,Passenger railways
Buckinghamshire Council ,31.01.2024,23.01.2024,Children's Services,Education & Childrens Services - CS Dir,TRAINLINE,40.24,0,40.24,Staff Travelling Expenses,Passenger railways
Buckinghamshire Council ,31.01.2024,23.01.2024,Children's Services,Education & Childrens Services - CS Dir,ASDA GEORGE COM LEEDS,50,0,50,Project Funding,Grocery stores
Buckinghamshire Council ,31.01.2024,23.01.2024,Children's Services,Education & Childrens Services - CS Dir,ASDA GEORGE COM LEEDS,50,0,50,Project Funding,Grocery stores
Buckinghamshire Council ,31.01.2024,23.01.2024,Communities,artnerships - Communities,TRAINLINE,48.59,0,48.59,Staff Travelling Expenses,Passenger railways
Buckinghamshire Council ,31.01.2024,23.01.2024,Children's Services,Education & Childrens Services - CS Dir,HP INC HP.COM STORE UK,64.01,0,64.01,Leaving Care - Grants for Care Leavers,Electronics shops
Buckinghamshire Council ,31.01.2024,23.01.2024,Deputy Chief Executive,Communities - DCE,BUCKINGHAMSHIRE COUNTY CO,10,0,10,Other General Office Expenses,Government services
Buckinghamshire Council ,31.01.2024,23.01.2024,Children's Services,Education & Childrens Services - CS Dir,ODEON AYLESBURY,4.3,0,4.3,Miscellaneous (Other)  Expenses,Cinemas
Buckinghamshire Council ,31.01.2024,23.01.2024,Deputy Chief Executive,Leader - DCE,TELEGRAPH SUBSCRIPTION,14.99,0,14.99,Stationery & Office Supplies,Continuous subscriptions
Buckinghamshire Council ,31.01.2024,23.01.2024,Deputy Chief Executive,Leader - DCE,TIMES NEWSPAPERS LTD,26,0,26,Stationery & Office Supplies,"Books, periodicals & newspapers"
Buckinghamshire Council ,31.01.2024,23.01.2024,Children's Services,Education & Childrens Services - CS Dir,TRAINLINE,77.14,0,77.14,Court Orders Sec 31: Supp. for Contact,Passenger railways
Buckinghamshire Council ,31.01.2024,23.01.2024,Children's Services,Education & Childrens Services - CS Dir,CHILTERN RAILWAYS,36.2,0,36.2,Court Orders Sec 31: Supp. for Contact,Passenger railways
Buckinghamshire Council ,31.01.2024,23.01.2024,Children's Services,Education & Childrens Services - CS Dir,CHARGEMASTER LIMITED,11.21,0,11.21,Car Allowances Mileage & Lump Sum,
Buckinghamshire Council ,31.01.2024,23.01.2024,Resources,AH&R - Res Dir,DOLBY HOTEL LIVERPOOL,60.15,0,60.15,"Courses, Conference and Seminar Fees","Hotels, motels & resorts"
Buckinghamshire Council ,31.01.2024,23.01.2024,Resources,AH&R - Res Dir,LINKEDIN ADS 9826363844,100.57,0,100.57,Permanent Recruitment Costs,Advertising services
Buckinghamshire Council ,31.01.2024,23.01.2024,Children's Services,Education & Childrens Services - CS Dir,TEST METER GROUP LTD.,212.95,42.59,255.54,Health & Safety Supplies & Services,Misc commercial machines equipment
Buckinghamshire Council ,31.01.2024,23.01.2024,Children's Services,Education & Childrens Services - CS Dir,COOKSON PRECIOUS M,75.35,15.07,90.42,Educational Equipment,"Precious stones, metals & jewellery"
Buckinghamshire Council ,31.01.2024,23.01.2024,Children's Services,Education & Childrens Services - CS Dir,COOKSON PRECIOUS M,0.02,0,0.02,Educational Equipment,"Precious stones, metals & jewellery"
Buckinghamshire Council ,31.01.2024,23.01.2024,Children's Services,Education & Childrens Services - CS Dir,AMZNMKTPLACE,-24.25,-4.85,-29.1,IT Equipment Purchase,Miscellaneous retail
Buckinghamshire Council ,31.01.2024,23.01.2024,Children's Services,Education & Childrens Services - CS Dir,AMZNMKTPLACE,-17.35,0,-17.35,IT Equipment Purchase,Miscellaneous retail
Buckinghamshire Council ,31.01.2024,23.01.2024,Children's Services,Education & Childrens Services - CS Dir,LIDL GB  HIGH WYCOMBE,1.5,0,1.5,Miscellaneous (Other)  Expenses,Grocery stores
Buckinghamshire Council ,31.01.2024,23.01.2024,Communities,Housing & Homelessness & Regulatory Comm,AMZNMKTPLACE,45.98,0,45.98,Printing & Stationery,Miscellaneous retail
Buckinghamshire Council ,31.01.2024,23.01.2024,Deputy Chief Executive,Communities - DCE,PAYPAL,139.15,27.83,166.98,Other Personal Needs,Variety stores
Buckinghamshire Council ,31.01.2024,23.01.2024,Deputy Chief Executive,Communities - DCE,PAYPAL,0.02,0,0.02,Other Personal Needs,Variety stores
Buckinghamshire Council ,31.01.2024,23.01.2024,Deputy Chief Executive,Communities - DCE,PAYPAL,164.12,32.83,196.95,Other Personal Needs,Variety stores
Buckinghamshire Council ,31.01.2024,23.01.2024,Deputy Chief Executive,Communities - DCE,PAYPAL,19.95,0,19.95,Other Personal Needs,Variety stores
Buckinghamshire Council ,31.01.2024,23.01.2024,Deputy Chief Executive,Communities - DCE,PAYPAL,12.5,2.5,15,Other Personal Needs,Variety stores
Buckinghamshire Council ,31.01.2024,23.01.2024,"Planning, Growth & Sustainability",Partnership Climate Change & Envir - PGS,WP-CRANFIELD UNIVE,"1,960.80",0,"1,960.80",Software Rental (Annual),Professional services
Buckinghamshire Council ,31.01.2024,22.01.2024,Communities,Housing & Homelessness & Regulatory PGS,HMV RETAIL LTD,19.99,0,19.99,Administrative Equipment & Tools,Record shops
Buckinghamshire Council ,31.01.2024,22.01.2024,Resources,AH&R - Res Dir,SumUp  *Aa taxis Leigh,360,0,360,Staff Travelling Expenses,Taxicabs & limousines
Buckinghamshire Council ,31.01.2024,22.01.2024,Adults and Health,Health & Wellbeing - Adults & Health Dir,ASDA SUPERSTORE,5.8,0,5.8,Awaiting Coding,Grocery stores
Buckinghamshire Council ,31.01.2024,22.01.2024,Resources,AH&R - Res Dir,"GITHUB, INC.",3.26,0,3.26,Computer Support Services,"Programming, data processing & system design"
Buckinghamshire Council ,31.01.2024,22.01.2024,Children's Services,Education & Childrens Services - CS Dir,LOCK & KEY CENTRE,53,0,53,Other Equipment and Materials,Misc business services
Buckinghamshire Council ,31.01.2024,22.01.2024,"Planning, Growth & Sustainability",AH&R - PGS Dir,WICKES AYLESBURY,39,0,39,General Repairs & Maintenance,Timber & building supplies
Buckinghamshire Council ,31.01.2024,22.01.2024,Deputy Chief Executive,Communities - DCE,WWW.ARGOS.CO.UK,295.79,59.16,354.95,Other Personal Needs,Department stores
Buckinghamshire Council ,31.01.2024,22.01.2024,Deputy Chief Executive,Communities - DCE,WWW.ARGOS.CO.UK,69.95,13.99,83.94,Other Personal Needs,Department stores
Buckinghamshire Council ,31.01.2024,22.01.2024,Deputy Chief Executive,Communities - DCE,WWW.ARGOS.CO.UK,0.01,0,0.01,Other Personal Needs,Department stores
Buckinghamshire Council ,31.01.2024,22.01.2024,Deputy Chief Executive,Communities - DCE,AO RETAIL LIMITED,282.5,56.5,339,Other Personal Needs,Household appliance stores
Buckinghamshire Council ,31.01.2024,22.01.2024,Deputy Chief Executive,Communities - DCE,AO RETAIL LIMITED,598.33,119.67,718,Other Personal Needs,Household appliance stores
Buckinghamshire Council ,31.01.2024,22.01.2024,"Planning, Growth & Sustainability",Housing & Homelessness & Regulatory PGS,LAND REGISTRY ECOM CCC,3,0,3,Homelessness,Government services
Buckinghamshire Council ,31.01.2024,22.01.2024,"Planning, Growth & Sustainability",Housing & Homelessness & Regulatory PGS,LAND REGISTRY ECOM CCC,3,0,3,Homelessness,Government services
Buckinghamshire Council ,31.01.2024,22.01.2024,Communities,artnerships - Communities,CURRYS AYLESBURY,199,0,199,Equipment,Electronics shops
Buckinghamshire Council ,31.01.2024,22.01.2024,"Planning, Growth & Sustainability",AH&R - PGS Dir,AMZNMKTPLACE,28.99,0,28.99,Other Equipment and Materials,Miscellaneous retail
Buckinghamshire Council ,31.01.2024,22.01.2024,"Planning, Growth & Sustainability",AH&R - PGS Dir,LAMPS - THE ELECTRICAL W,73.97,0,73.97,General Repairs & Maintenance,Electrical parts & equipment
Buckinghamshire Council ,31.01.2024,22.01.2024,"Planning, Growth & Sustainability",AH&R - PGS Dir,SCREWFIX DIR LTD,89.62,0,89.62,General Repairs & Maintenance,Timber & building supplies
Buckinghamshire Council ,31.01.2024,22.01.2024,"Planning, Growth & Sustainability",AH&R - PGS Dir,SCREWFIX DIR LTD,9.98,0,9.98,General Repairs & Maintenance,Timber & building supplies
Buckinghamshire Council ,31.01.2024,22.01.2024,Children's Services,Education & Childrens Services - CS Dir,AMZNMKTPLACE,806.22,0,806.22,Awaiting Coding,Miscellaneous retail
Buckinghamshire Council ,31.01.2024,22.01.2024,"Planning, Growth & Sustainability",Planning & Regeneration - PGS,HSE - BSR,336,0,336,Professional Subscriptions re Employees,Government services
Buckinghamshire Council ,31.01.2024,22.01.2024,Children's Services,Education & Childrens Services - CS Dir,EVENTBRITE.COM ORG FEE,7.99,0,7.99,Computer Consumables,Computer software stores
Buckinghamshire Council ,31.01.2024,22.01.2024,Children's Services,Education & Childrens Services - CS Dir,AMZNMKTPLACE,109.99,0,109.99,IT Equipment Purchase,Miscellaneous retail
Buckinghamshire Council ,31.01.2024,22.01.2024,Children's Services,Education & Childrens Services - CS Dir,AMZNMKTPLACE,27.38,0,27.38,Miscellaneous (Other)  Expenses,Miscellaneous retail
Buckinghamshire Council ,31.01.2024,22.01.2024,Children's Services,Education & Childrens Services - CS Dir,AMZNMKTPLACE,109.99,0,109.99,IT Equipment Purchase,Miscellaneous retail
Buckinghamshire Council ,31.01.2024,22.01.2024,Children's Services,Education & Childrens Services - CS Dir,AMZNMKTPLACE,24.98,0,24.98,IT Equipment Purchase,Miscellaneous retail
Buckinghamshire Council ,31.01.2024,22.01.2024,Children's Services,Education & Childrens Services - CS Dir,WM MORRISONS STORE,5.54,0,5.54,Awaiting Coding,Grocery stores
Buckinghamshire Council ,31.01.2024,22.01.2024,Children's Services,Education & Childrens Services - CS Dir,SP CHILD AND FAMILY TR,28.5,0,28.5,Awaiting Coding,"Civic, social & fraternal associations"
Buckinghamshire Council ,31.01.2024,22.01.2024,Resources,AH&R - Res Dir,AMZNMktplace,309.96,0,309.96,Awaiting Coding,Miscellaneous retail
Buckinghamshire Council ,31.01.2024,22.01.2024,Communities,Climate Change & Environment - Community,AMZNMKTPLACE,11.99,0,11.99,Waste Prevention costs,Miscellaneous retail
Buckinghamshire Council ,31.01.2024,22.01.2024,Communities,Climate Change & Environment - Community,AMZNMKTPLACE,12.98,0,12.98,Waste Prevention costs,Miscellaneous retail
Buckinghamshire Council ,31.01.2024,22.01.2024,Children's Services,Education & Childrens Services - CS Dir,O2 UK,10,0,10,Telephones,Phone equipment & sales
Buckinghamshire Council ,31.01.2024,22.01.2024,Children's Services,Education & Childrens Services - CS Dir,WWW.ARGOS.CO.UK,150.95,0,150.95,Support for Foster Carers,Department stores
Buckinghamshire Council ,31.01.2024,22.01.2024,Deputy Chief Executive,Leader - DCE,FACEBK *35XUHXBYS2,840,0,840,Advertising,Advertising services
Buckinghamshire Council ,31.01.2024,22.01.2024,Children's Services,Education & Childrens Services - CS Dir,AMAZON.CO.UK,40,0,40,Leaving Care - Grants for Care Leavers,Direct sales companies
Buckinghamshire Council ,31.01.2024,22.01.2024,Adults and Health,Health & Wellbeing - Adults & Health Dir,TESCO STORES 5135,231.17,0,231.17,General Provisions (Food),Grocery stores
Buckinghamshire Council ,31.01.2024,22.01.2024,"Planning, Growth & Sustainability",Housing & Homelessness & Regulatory PGS,TIMPSON LTD,265.5,0,265.5,Stationery & Office Supplies,Miscellaneous retail
Buckinghamshire Council ,31.01.2024,22.01.2024,"Planning, Growth & Sustainability",Planning & Regeneration - PGS,TFL TRAVEL CH,5.5,0,5.5,Staff Travelling Expenses,Local commuter transport
Buckinghamshire Council ,31.01.2024,22.01.2024,"Planning, Growth & Sustainability",Planning & Regeneration - PGS,TRAINLINE,16.35,0,16.35,Staff Travelling Expenses,Passenger railways
Buckinghamshire Council ,31.01.2024,22.01.2024,Children's Services,Education & Childrens Services - CS Dir,AMZNMKTPLACE,6.25,1.25,7.5,Educational Equipment,Miscellaneous retail
Buckinghamshire Council ,31.01.2024,22.01.2024,Children's Services,Education & Childrens Services - CS Dir,CARPETRIGHT LIMITED,544.54,0,544.54,Repair and Maintenance of Equipment,Furniture & home furnishing
Buckinghamshire Council ,31.01.2024,22.01.2024,Adults and Health,Health & Wellbeing - Adults & Health Dir,ASDA GROCERIES ONLINE,87.32,0,87.32,General Provisions (Food),Grocery stores
Buckinghamshire Council ,31.01.2024,22.01.2024,Adults and Health,Health & Wellbeing - Adults & Health Dir,ASDA GROCERIES ONLINE,-1.82,0,-1.82,General Provisions (Food),Grocery stores
Buckinghamshire Council ,31.01.2024,22.01.2024,Children's Services,Education & Childrens Services - CS Dir,TRAINLINE,23.59,0,23.59,Sec 20/31: Supp for Contact,Passenger railways
Buckinghamshire Council ,31.01.2024,22.01.2024,Deputy Chief Executive,AH&R- DCE Dir,PAYPAL,231.7,0,231.7,Awaiting Coding,Variety stores
Buckinghamshire Council ,31.01.2024,22.01.2024,Deputy Chief Executive,AH&R- DCE Dir,PAYPAL,266.95,0,266.95,Awaiting Coding,Variety stores
Buckinghamshire Council ,31.01.2024,22.01.2024,Deputy Chief Executive,AH&R- DCE Dir,PAYPAL,254,0,254,Awaiting Coding,Electronics shops
Buckinghamshire Council ,31.01.2024,22.01.2024,Deputy Chief Executive,AH&R- DCE Dir,PAYPAL,116.16,0,116.16,Awaiting Coding,Variety stores
Buckinghamshire Council ,31.01.2024,22.01.2024,Deputy Chief Executive,AH&R- DCE Dir,PAYPAL,9,0,9,Awaiting Coding,Variety stores
Buckinghamshire Council ,31.01.2024,21.01.2024,Communities,Culture & Leisure - Communities Dir,FACEBK *7HPBYVB2A2,7,0,7,Events Expenditure,Advertising services
Buckinghamshire Council ,31.01.2024,21.01.2024,Communities,Housing & Homelessness & Regulatory Comm,AMZNMKTPLACE,33.6,0,33.6,Maintenance of Grounds,Miscellaneous retail
Buckinghamshire Council ,31.01.2024,21.01.2024,Communities,Culture & Leisure - Communities Dir,AMZNMKTPLACE,34.85,6.97,41.82,Administrative Equipment & Tools,Miscellaneous retail
Buckinghamshire Council ,31.01.2024,21.01.2024,Communities,Culture & Leisure - Communities Dir,AMZNMKTPLACE,0.1,0,0.1,Administrative Equipment & Tools,Miscellaneous retail
Buckinghamshire Council ,31.01.2024,21.01.2024,Children's Services,Education & Childrens Services - CS Dir,AMAZON.CO.UK,76.99,0,76.99,Leaving Care - Grants for Care Leavers,Direct sales companies
Buckinghamshire Council ,31.01.2024,21.01.2024,Children's Services,Education & Childrens Services - CS Dir,AMZNMKTPLACE,10.5,2.1,12.6,Educational Equipment,Miscellaneous retail
Buckinghamshire Council ,31.01.2024,21.01.2024,Children's Services,Education & Childrens Services - CS Dir,AMZNMKTPLACE,0.02,0,0.02,Educational Equipment,Miscellaneous retail
Buckinghamshire Council ,31.01.2024,20.01.2024,Children's Services,Education & Childrens Services - CS Dir,TESCO STORES 2038,150.79,0,150.79,General Provisions (Food),Grocery stores
Buckinghamshire Council ,31.01.2024,20.01.2024,Communities,Culture & Leisure - Communities Dir,SP MEDISAVE.CO.UK,42.3,8.46,50.76,Health & Safety Supplies & Services,Misc. general merchandise
Buckinghamshire Council ,31.01.2024,20.01.2024,Communities,Culture & Leisure - Communities Dir,SP MEDISAVE.CO.UK,0.02,0,0.02,Health & Safety Supplies & Services,Misc. general merchandise
Buckinghamshire Council ,31.01.2024,20.01.2024,Children's Services,Education & Childrens Services - CS Dir,AMZNMKTPLACE,607.55,0,607.55,Equipment (including storage),Miscellaneous retail
Buckinghamshire Council ,31.01.2024,20.01.2024,Resources,AH&R - Res Dir,LINKEDIN ADS 9817681184,95.09,0,95.09,Permanent Recruitment Costs,Advertising services
Buckinghamshire Council ,31.01.2024,20.01.2024,Children's Services,Education & Childrens Services - CS Dir,AMZNMKTPLACE,83.3,16.66,99.96,IT Equipment Purchase,Miscellaneous retail
Buckinghamshire Council ,31.01.2024,20.01.2024,Children's Services,Education & Childrens Services - CS Dir,AMZNMKTPLACE,0.02,0,0.02,IT Equipment Purchase,Miscellaneous retail
Buckinghamshire Council ,31.01.2024,19.01.2024,Deputy Chief Executive,Communities - DCE,WWW.LOVELLFUELS.CO.UK,364.88,0,364.88,Other Personal Needs,Fuel dealers
Buckinghamshire Council ,31.01.2024,19.01.2024,Children's Services,Education & Childrens Services - CS Dir,AMZNMKTPLACE,31.51,0,31.51,Miscellaneous (Other)  Expenses,Miscellaneous retail
Buckinghamshire Council ,31.01.2024,19.01.2024,Communities,Climate Change & Environment - Community,AMZNMKTPLACE,270.85,0,270.85,Equipment,Miscellaneous retail
Buckinghamshire Council ,31.01.2024,19.01.2024,"Planning, Growth & Sustainability",Planning & Regeneration - PGS,TEXTANYWHERE,75.6,0,75.6,Computer Consumables,Computer software stores
Buckinghamshire Council ,31.01.2024,19.01.2024,Resources,AH&R - Res Dir,A1 Taxi Service,840,0,840,Staff Travelling Expenses,Taxicabs & limousines
Buckinghamshire Council ,31.01.2024,19.01.2024,"Planning, Growth & Sustainability",Housing & Homelessness & Regulatory PGS,8883O84415* ABBEYLODGE,502.55,0,502.55,Homelessness,Tourist attractions and exhibitions
Buckinghamshire Council ,31.01.2024,19.01.2024,Children's Services,Education & Childrens Services - CS Dir,MYTRIPBUS* REDLINE BUS,8,0,8,Sec 20/31: Supp for Contact,
Buckinghamshire Council ,31.01.2024,19.01.2024,Children's Services,Education & Childrens Services - CS Dir,MYTRIPBUS* REDLINE BUS,8,0,8,Sec 20/31: Supp for Contact,
Buckinghamshire Council ,31.01.2024,19.01.2024,Children's Services,Education & Childrens Services - CS Dir,MYTRIPBUS* REDLINE BUS,8,0,8,Sec 20/31: Supp for Contact,
Buckinghamshire Council ,31.01.2024,19.01.2024,Children's Services,Education & Childrens Services - CS Dir,FIRST BUS - WEB,23.4,0,23.4,Sec 20/31: Supp for Contact,"Buses, charter & tour"
Buckinghamshire Council ,31.01.2024,19.01.2024,Children's Services,Education & Childrens Services - CS Dir,TRAINLINE,232.89,0,232.89,Sec 20/31: Supp for Contact,Passenger railways
Buckinghamshire Council ,31.01.2024,19.01.2024,Children's Services,Education & Childrens Services - CS Dir,AMZNMKTPLACE,-35,0,-35,Leaving Care - Grants for Care Leavers,Miscellaneous retail
Buckinghamshire Council ,31.01.2024,19.01.2024,Children's Services,Education & Childrens Services - CS Dir,AMZNMKTPLACE,-44.99,0,-44.99,Leaving Care - Grants for Care Leavers,Miscellaneous retail
Buckinghamshire Council ,31.01.2024,19.01.2024,Deputy Chief Executive,Communities - DCE,OAK FARM LEISURE,110,0,110,Other Personal Needs,Tents and camping shops
Buckinghamshire Council ,31.01.2024,19.01.2024,"Planning, Growth & Sustainability",AH&R - PGS Dir,ASDA SUPERSTORE,13.05,0,13.05,General Provisions (Food),Grocery stores
Buckinghamshire Council ,31.01.2024,19.01.2024,Deputy Chief Executive,Communities - DCE,WWW.ARGOS.CO.UK,53.29,10.66,63.95,Other Personal Needs,Department stores
Buckinghamshire Council ,31.01.2024,19.01.2024,Deputy Chief Executive,Communities - DCE,WWW.ARGOS.CO.UK,222.45,44.49,266.94,Other Personal Needs,Department stores
Buckinghamshire Council ,31.01.2024,19.01.2024,Deputy Chief Executive,Communities - DCE,WWW.ARGOS.CO.UK,0.01,0,0.01,Other Personal Needs,Department stores
Buckinghamshire Council ,31.01.2024,19.01.2024,Deputy Chief Executive,Communities - DCE,AO RETAIL LIMITED,444.15,88.83,532.98,Other Personal Needs,Household appliance stores
Buckinghamshire Council ,31.01.2024,19.01.2024,Deputy Chief Executive,Communities - DCE,AO RETAIL LIMITED,0.02,0,0.02,Other Personal Needs,Household appliance stores
Buckinghamshire Council ,31.01.2024,19.01.2024,Children's Services,Education & Childrens Services - CS Dir,BUCKINGHAM HOTELS,"1,890.00",0,"1,890.00",Sec 17: Accommodation,"Hotels, motels & resorts"
Buckinghamshire Council ,31.01.2024,19.01.2024,Children's Services,Education & Childrens Services - CS Dir,AMAZON.CO.UK,44.2,0,44.2,"Books, Records, Films & Oth Publications",Direct sales companies
Buckinghamshire Council ,31.01.2024,19.01.2024,Children's Services,Education & Childrens Services - CS Dir,TRAINLINE,117.9,0,117.9,Sec 20/31: Financial Assistance,Passenger railways
Buckinghamshire Council ,31.01.2024,19.01.2024,Children's Services,Education & Childrens Services - CS Dir,LYNKPAY* 001 TAXIS,141.75,0,141.75,Sec 20/31: Transport,
Buckinghamshire Council ,31.01.2024,19.01.2024,Children's Services,Education & Childrens Services - CS Dir,LYNKPAY* 001 TAXIS,141.75,0,141.75,Sec 20/31: Transport,
Buckinghamshire Council ,31.01.2024,19.01.2024,Children's Services,Education & Childrens Services - CS Dir,UTILITA ENERGY LIMITED,100,0,100,General Repairs & Maintenance,Utilities
Buckinghamshire Council ,31.01.2024,19.01.2024,Children's Services,Education & Childrens Services - CS Dir,WP-WORTH PUBLISHIN,"1,195.14",0,"1,195.14","Books, Records, Films & Oth Publications",Book stores
Buckinghamshire Council ,31.01.2024,19.01.2024,Children's Services,Education & Childrens Services - CS Dir,WP-WORTH PUBLISHIN,"1,303.38",0,"1,303.38","Books, Records, Films & Oth Publications",Book stores
Buckinghamshire Council ,31.01.2024,19.01.2024,Children's Services,Education & Childrens Services - CS Dir,ASDA GEORGE COM LEEDS,-5,0,-5,Project Funding,Grocery stores
Buckinghamshire Council ,31.01.2024,19.01.2024,"Planning, Growth & Sustainability",AH&R - PGS Dir,LYRECO UK LTD,42.75,8.55,51.3,Stationery & Office Supplies,Stationery & office supplies
Buckinghamshire Council ,31.01.2024,19.01.2024,"Planning, Growth & Sustainability",AH&R - PGS Dir,LYRECO UK LTD,0.01,0,0.01,Stationery & Office Supplies,Stationery & office supplies
Buckinghamshire Council ,31.01.2024,19.01.2024,"Planning, Growth & Sustainability",Housing & Homelessness & Regulatory PGS,WWW.ARGOS.CO.UK,619.95,0,619.95,Miscellaneous (Other)  Expenses,Department stores
Buckinghamshire Council ,31.01.2024,19.01.2024,"Planning, Growth & Sustainability",Housing & Homelessness & Regulatory PGS,WWW.ARGOS.CO.UK,619.95,0,619.95,Miscellaneous (Other)  Expenses,Department stores
Buckinghamshire Council ,31.01.2024,19.01.2024,Children's Services,Education & Childrens Services - CS Dir,THE E-LEARNING NETWORK,292.5,0,292.5,Training (Inc. Health & Safety Courses),Men & womens clothing shops
Buckinghamshire Council ,31.01.2024,19.01.2024,Children's Services,Education & Childrens Services - CS Dir,FLORAL CREATIONS  AMER,54.95,0,54.95,"Courses, Conference and Seminar Fees",Florists
Buckinghamshire Council ,31.01.2024,19.01.2024,"Planning, Growth & Sustainability",Special Expenses,IKEA LTD SHOP ONLINE,165.83,33.17,199,Stationery & Office Supplies,Furniture & home furnishing
Buckinghamshire Council ,31.01.2024,18.01.2024,Children's Services,Education & Childrens Services - CS Dir,AMZNMKTPLACE,149.11,0,149.11,Training (Inc. Health & Safety Courses),Miscellaneous retail
Buckinghamshire Council ,31.01.2024,18.01.2024,Children's Services,Education & Childrens Services - CS Dir,AMZNMKTPLACE,32.97,0,32.97,Leaving Care - Grants for Care Leavers,Miscellaneous retail
Buckinghamshire Council ,31.01.2024,18.01.2024,Deputy Chief Executive,Communities - DCE,BARTON PETROLEUM,388.24,0,388.24,Other Personal Needs,Petroleum products
Buckinghamshire Council ,31.01.2024,18.01.2024,"Planning, Growth & Sustainability",Planning & Regeneration - PGS,HSE - BSR,336,0,336,Reg & Exam Fees for External Courses,Government services
Buckinghamshire Council ,31.01.2024,18.01.2024,Children's Services,Education & Childrens Services - CS Dir,AA TAXIS,90,0,90,Sec 20/31: Transport,Taxicabs & limousines
Buckinghamshire Council ,31.01.2024,18.01.2024,"Planning, Growth & Sustainability",Housing & Homelessness & Regulatory PGS,BUCKINGHAM HOTELS,91,0,91,Homelessness,"Hotels, motels & resorts"
Buckinghamshire Council ,31.01.2024,18.01.2024,"Planning, Growth & Sustainability",Housing & Homelessness & Regulatory PGS,BKG*HOTEL AT BOOKING.C,95,0,95,Homelessness,Travel agencies
Buckinghamshire Council ,31.01.2024,18.01.2024,"Planning, Growth & Sustainability",Housing & Homelessness & Regulatory PGS,PREMIER INN,534,0,534,Homelessness,Premier Inn
Buckinghamshire Council ,31.01.2024,18.01.2024,Children's Services,Education & Childrens Services - CS Dir,LONDIS,20,0,20,General Postage,Misc Food stores
Buckinghamshire Council ,31.01.2024,18.01.2024,Children's Services,Education & Childrens Services - CS Dir,WWW.WESTNORTHANTS.GOV.,826.4,0,826.4,Leaving Care  - Financial Assistance,Misc business services
Buckinghamshire Council ,31.01.2024,18.01.2024,Children's Services,Education & Childrens Services - CS Dir,AMZNMKTPLACE,"1,495.00",0,"1,495.00",Leaving Care - Grants for Care Leavers,Miscellaneous retail
Buckinghamshire Council ,31.01.2024,18.01.2024,Children's Services,Education & Childrens Services - CS Dir,COSTCO WHOLESALE #117,158.8,0,158.8,Stationery & Office Supplies,Buying & shopping services/clubs
Buckinghamshire Council ,31.01.2024,18.01.2024,"Planning, Growth & Sustainability",AH&R - PGS Dir,AMZNMKTPLACE,25.98,0,25.98,Other Equipment and Materials,Miscellaneous retail
Buckinghamshire Council ,31.01.2024,18.01.2024,Deputy Chief Executive,Communities - DCE,WWW.ARGOS.CO.UK,59.95,12,71.95,Other Personal Needs,Department stores
Buckinghamshire Council ,31.01.2024,18.01.2024,Deputy Chief Executive,Communities - DCE,WWW.ARGOS.CO.UK,34.1,6.82,40.92,Other Personal Needs,Department stores
Buckinghamshire Council ,31.01.2024,18.01.2024,Deputy Chief Executive,Communities - DCE,WWW.ARGOS.CO.UK,0.03,0,0.03,Other Personal Needs,Department stores
Buckinghamshire Council ,31.01.2024,18.01.2024,Deputy Chief Executive,Communities - DCE,WWW.ARGOS.CO.UK,32.45,6.49,38.94,Other Personal Needs,Department stores
Buckinghamshire Council ,31.01.2024,18.01.2024,Deputy Chief Executive,Communities - DCE,WWW.ARGOS.CO.UK,0.01,0,0.01,Other Personal Needs,Department stores
Buckinghamshire Council ,31.01.2024,18.01.2024,Deputy Chief Executive,Communities - DCE,AO RETAIL LIMITED,847.49,169.51,"1,017.00",Other Personal Needs,Household appliance stores
Buckinghamshire Council ,31.01.2024,18.01.2024,Deputy Chief Executive,Communities - DCE,WWW.ARGOS.CO.UK,671.6,134.32,805.92,Other Personal Needs,Department stores
Buckinghamshire Council ,31.01.2024,18.01.2024,Deputy Chief Executive,Communities - DCE,WWW.ARGOS.CO.UK,0.03,0,0.03,Other Personal Needs,Department stores
Buckinghamshire Council ,31.01.2024,18.01.2024,Deputy Chief Executive,Communities - DCE,AO RETAIL LIMITED,914.16,182.84,"1,097.00",Other Personal Needs,Household appliance stores
Buckinghamshire Council ,31.01.2024,18.01.2024,Deputy Chief Executive,Communities - DCE,AO RETAIL LIMITED,868.33,173.67,"1,042.00",Other Personal Needs,Household appliance stores
Buckinghamshire Council ,31.01.2024,18.01.2024,Communities,Culture & Leisure - Communities Dir,AMZNMKTPLACE,9.98,2,11.98,"Workshop - Materials,Tools & Equipment",Miscellaneous retail
Buckinghamshire Council ,31.01.2024,18.01.2024,Communities,artnerships - Communities,SLOL-BISHAM,8.75,0,8.75,Miscellaneous (Other)  Expenses,"Hotels, motels & resorts"
Buckinghamshire Council ,31.01.2024,18.01.2024,Communities,artnerships - Communities,SLOL-BISHAM,8.75,0,8.75,Miscellaneous (Other)  Expenses,"Hotels, motels & resorts"
Buckinghamshire Council ,31.01.2024,18.01.2024,Communities,artnerships - Communities,SLOL-BISHAM,25.35,0,25.35,Miscellaneous (Other)  Expenses,"Hotels, motels & resorts"
Buckinghamshire Council ,31.01.2024,18.01.2024,Children's Services,Education & Childrens Services - CS Dir,POST OFFICE COUNTER,21.6,0,21.6,General Postage,Postal services
Buckinghamshire Council ,31.01.2024,18.01.2024,"Planning, Growth & Sustainability",AH&R - PGS Dir,BOOKER LTD - 38534944,11.5,2.3,13.8,Vending Machines Supplies,Grocery stores
Buckinghamshire Council ,31.01.2024,18.01.2024,"Planning, Growth & Sustainability",AH&R - PGS Dir,BOOKER LTD - 38534944,79.23,0,79.23,Vending Machines Supplies,Grocery stores
Buckinghamshire Council ,31.01.2024,18.01.2024,Children's Services,Education & Childrens Services - CS Dir,UTILITA ENERGY LIMITED,100,0,100,General Repairs & Maintenance,Utilities
Buckinghamshire Council ,31.01.2024,18.01.2024,Children's Services,Education & Childrens Services - CS Dir,ODEON AYLESBURY,3.16,0,3.16,Activities & General Recreation,Cinemas
Buckinghamshire Council ,31.01.2024,18.01.2024,Adults and Health,Communities - Adults & Health,AMZNMKTPLACE,26.49,0,26.49,Stationery & Office Supplies,Miscellaneous retail
Buckinghamshire Council ,31.01.2024,18.01.2024,Children's Services,Education & Childrens Services - CS Dir,OTHM QUALIFICATIONS,55,0,55,Furniture,Schools
Buckinghamshire Council ,31.01.2024,18.01.2024,Children's Services,Education & Childrens Services - CS Dir,MOL*FLAIR FURNITURE LTD,485.97,0,485.97,Equipment (including storage),Furniture & home furnishing
Buckinghamshire Council ,31.01.2024,18.01.2024,Adults and Health,Health & Wellbeing - Adults & Health Dir,BKG*HOTEL AT BOOKING.C,512.55,0,512.55,Other Short Term Support,Travel agencies
Buckinghamshire Council ,31.01.2024,18.01.2024,"Planning, Growth & Sustainability",Planning & Regeneration - PGS,NEW YORK DELI GATEHOUSE,55,11,66,Subsistence,Restaurants
Buckinghamshire Council ,31.01.2024,18.01.2024,Communities,artnerships - Communities,TRAINLINE,48.59,0,48.59,Staff Travelling Expenses,Passenger railways
Buckinghamshire Council ,31.01.2024,18.01.2024,Children's Services,Education & Childrens Services - CS Dir,DOMINO S PIZZA,50.5,0,50.5,"Exp of School, Club & College Activities",Restaurants
Buckinghamshire Council ,31.01.2024,18.01.2024,Children's Services,Education & Childrens Services - CS Dir,EBAY O*08-11070-47104,13.69,0,13.69,Leaving Care - Grants for Care Leavers,Department stores
Buckinghamshire Council ,31.01.2024,18.01.2024,Children's Services,Education & Childrens Services - CS Dir,EBAY O*08-11070-47105,31.99,0,31.99,Leaving Care - Grants for Care Leavers,Department stores
Buckinghamshire Council ,31.01.2024,18.01.2024,Children's Services,Education & Childrens Services - CS Dir,EBAY O*08-11070-47106,18.95,0,18.95,Leaving Care - Grants for Care Leavers,Department stores
Buckinghamshire Council ,31.01.2024,18.01.2024,Children's Services,Education & Childrens Services - CS Dir,EBAY O*08-11070-47107,189.99,0,189.99,Leaving Care - Grants for Care Leavers,Department stores
Buckinghamshire Council ,31.01.2024,18.01.2024,Children's Services,Education & Childrens Services - CS Dir,EBAY O*08-11070-47108,10.42,0,10.42,Leaving Care - Grants for Care Leavers,Department stores
Buckinghamshire Council ,31.01.2024,18.01.2024,Children's Services,Education & Childrens Services - CS Dir,EBAY O*08-11070-47109,8.75,0,8.75,Leaving Care - Grants for Care Leavers,Department stores
Buckinghamshire Council ,31.01.2024,18.01.2024,Children's Services,Education & Childrens Services - CS Dir,UNITE STUDENTS,"5,421.14",0,"5,421.14",Leaving Care - Higher Education Supp,Estate Agents & Property Management
Buckinghamshire Council ,31.01.2024,18.01.2024,Children's Services,Education & Childrens Services - CS Dir,WWW.ARGOS.CO.UK,40.95,0,40.95,Leaving Care - Grants for Care Leavers,Department stores
Buckinghamshire Council ,31.01.2024,18.01.2024,Children's Services,Education & Childrens Services - CS Dir,TESCO STORES 5927,7,0,7,General Provisions (Food),Grocery stores
Buckinghamshire Council ,31.01.2024,18.01.2024,"Planning, Growth & Sustainability",Planning & Regeneration - PGS,AMZNMKTPLACE,68.88,0,68.88,IT Equipment Purchase,Miscellaneous retail
Buckinghamshire Council ,31.01.2024,18.01.2024,Adults and Health,Health & Wellbeing - Adults & Health Dir,ASDA GROCERIES ONLINE,75.81,0,75.81,General Provisions (Food),Grocery stores
Buckinghamshire Council ,31.01.2024,18.01.2024,Adults and Health,Health & Wellbeing - Adults & Health Dir,ASDA GROCERIES ONLINE,-1.25,0,-1.25,General Provisions (Food),Grocery stores
Buckinghamshire Council ,31.01.2024,18.01.2024,Communities,Housing & Homelessness & Regulatory Comm,BOOKER LTD - 38534944,155.67,0,155.67,Vending Machines Supplies,Grocery stores
Buckinghamshire Council ,31.01.2024,17.01.2024,"Planning, Growth & Sustainability",Planning & Regeneration - PGS,WWW.LABC.UK.COM,720,0,720,Course Fees & Post Entry Training,Misc business services
Buckinghamshire Council ,31.01.2024,17.01.2024,"Planning, Growth & Sustainability",Housing & Homelessness & Regulatory PGS,CHRISS MOTEL,250,0,250,Homelessness,"Hotels, motels & resorts"
Buckinghamshire Council ,31.01.2024,17.01.2024,Deputy Chief Executive,Leader - DCE,AMZNMKTPLACE,11.62,2.33,13.95,Stationery & Office Supplies,Miscellaneous retail
Buckinghamshire Council ,31.01.2024,17.01.2024,"Planning, Growth & Sustainability",Housing & Homelessness & Regulatory PGS,LAND REGISTRY ECOM CCC,3,0,3,Homelessness,Government services
Buckinghamshire Council ,31.01.2024,17.01.2024,Children's Services,Education & Childrens Services - CS Dir,AMZNMKTPLACE,149.99,0,149.99,Leaving Care - Grants for Care Leavers,Miscellaneous retail
Buckinghamshire Council ,31.01.2024,17.01.2024,Children's Services,Education & Childrens Services - CS Dir,WWW.ARGOS.CO.UK,10,0,10,Leaving Care  - Financial Assistance,Department stores
Buckinghamshire Council ,31.01.2024,17.01.2024,Children's Services,Education & Childrens Services - CS Dir,WWW.ARGOS.CO.UK,11.49,0,11.49,Leaving Care  - Financial Assistance,Department stores
Buckinghamshire Council ,31.01.2024,17.01.2024,Children's Services,Education & Childrens Services - CS Dir,ORCAM UK LTD,"1,000.00",0,"1,000.00",Specialist Equipment,Miscellaneous retail
Buckinghamshire Council ,31.01.2024,17.01.2024,Children's Services,Education & Childrens Services - CS Dir,ORCAM UK LTD,"1,000.00",0,"1,000.00",Specialist Equipment,Miscellaneous retail
Buckinghamshire Council ,31.01.2024,17.01.2024,Children's Services,Education & Childrens Services - CS Dir,ORCAM UK LTD,"1,491.60",0,"1,491.60",Specialist Equipment,Miscellaneous retail
Buckinghamshire Council ,31.01.2024,17.01.2024,Children's Services,Education & Childrens Services - CS Dir,POST OFFICE COUNTER,8.15,0,8.15,General Postage,Postal services
Buckinghamshire Council ,31.01.2024,17.01.2024,Deputy Chief Executive,Communities - DCE,AO RETAIL LIMITED,905.83,181.17,"1,087.00",Other Personal Needs,Household appliance stores
Buckinghamshire Council ,31.01.2024,17.01.2024,Communities,Housing & Homelessness & Regulatory Comm,GARAGE DOORS FIXED,960,0,960,Maintenance of Grounds,Household appliance stores
Buckinghamshire Council ,31.01.2024,17.01.2024,Children's Services,Education & Childrens Services - CS Dir,QR-CODE-GENERATOR.COM,85.2,0,85.2,Computer Consumables,Computer software stores
Buckinghamshire Council ,31.01.2024,17.01.2024,Children's Services,Education & Childrens Services - CS Dir,ODEON AYLESBURY,1.1,0,1.1,Activities & General Recreation,Cinemas
Buckinghamshire Council ,31.01.2024,17.01.2024,Communities,Transport - Communities Dir,WWW.SCREWFIX.COM,153.95,0,153.95,General Repairs & Maintenance,Timber & building supplies
Buckinghamshire Council ,31.01.2024,17.01.2024,Children's Services,Education & Childrens Services - CS Dir,SP COLLINS,627.95,0,627.95,"Books, Records, Films & Oth Publications",Book stores
Buckinghamshire Council ,31.01.2024,17.01.2024,Children's Services,Education & Childrens Services - CS Dir,AMZNMKTPLACE,52.75,0,52.75,"Books, Records, Films & Oth Publications",Miscellaneous retail
Buckinghamshire Council ,31.01.2024,17.01.2024,Children's Services,Education & Childrens Services - CS Dir,BAKER ROSS,9.45,0,9.45,Other Equipment and Materials,Art & craft shops
Buckinghamshire Council ,31.01.2024,17.01.2024,Adults and Health,Health & Wellbeing - Adults & Health Dir,TRAVELODGE GB0000,"1,468.98",0,"1,468.98",Other Short Term Support,Travelodge
Buckinghamshire Council ,31.01.2024,17.01.2024,Adults and Health,Health & Wellbeing - Adults & Health Dir,TRAVELODGE GB0000,59.74,0,59.74,Other Short Term Support,Travelodge
Buckinghamshire Council ,31.01.2024,17.01.2024,Children's Services,Education & Childrens Services - CS Dir,ASDA GEORGE COM LEEDS,50,0,50,Project Funding,Grocery stores
Buckinghamshire Council ,31.01.2024,17.01.2024,Children's Services,Education & Childrens Services - CS Dir,IKEA LTD SHOP ONLINE,56.5,0,56.5,Project Funding,Furniture & home furnishing
Buckinghamshire Council ,31.01.2024,17.01.2024,Children's Services,Education & Childrens Services - CS Dir,AMZNMKTPLACE,63.47,0,63.47,Project Funding,Miscellaneous retail
Buckinghamshire Council ,31.01.2024,17.01.2024,Children's Services,Education & Childrens Services - CS Dir,HM PASSPORT OFFICE,82.5,0,82.5,Sec 20/31: Financial Assistance,Government services
Buckinghamshire Council ,31.01.2024,17.01.2024,Children's Services,Education & Childrens Services - CS Dir,HM PASSPORT OFFICE,82.5,0,82.5,Sec 20/31: Financial Assistance,Government services
Buckinghamshire Council ,31.01.2024,17.01.2024,Children's Services,Education & Childrens Services - CS Dir,OXFORDSHIRE CC WEB1,11,0,11,Sec 20/31: Financial Assistance,Government services
Buckinghamshire Council ,31.01.2024,17.01.2024,Children's Services,Education & Childrens Services - CS Dir,BUCKINGHAMSHIRE CNCL,11,0,11,Sec 20/31: Financial Assistance,Government services
Buckinghamshire Council ,31.01.2024,17.01.2024,Communities,artnerships - Communities,TRAINLINE,25.19,0,25.19,Staff Travelling Expenses,Passenger railways
Buckinghamshire Council ,31.01.2024,17.01.2024,Deputy Chief Executive,AH&R- DCE Dir,WWW.ANYVAN.COM,315,0,315,Equipment (including storage),"Haulage, removals & delivery"
Buckinghamshire Council ,31.01.2024,17.01.2024,Children's Services,Education & Childrens Services - CS Dir,ASDA  STORES 4396,14.25,0,14.25,General Provisions (Food),Grocery stores
Buckinghamshire Council ,31.01.2024,17.01.2024,Children's Services,Education & Childrens Services - CS Dir,STARBUCKS,4.7,0,4.7,Miscellaneous (Other)  Expenses,Fast food restaurants
Buckinghamshire Council ,31.01.2024,17.01.2024,Resources,AH&R - Res Dir,C2E878300963E UKVI,"1,239.00",0,"1,239.00",Professional Services (non curriculum) - External,Government services
Buckinghamshire Council ,31.01.2024,17.01.2024,Adults and Health,Communities - Adults & Health,WM MORRISONS STORE,7.69,0,7.69,Stationery & Office Supplies,Grocery stores
Buckinghamshire Council ,31.01.2024,17.01.2024,Children's Services,Education & Childrens Services - CS Dir,BT.COM CONSUMER BP,40.99,0,40.99,Leaving Care  - Financial Assistance,Phone services
Buckinghamshire Council ,31.01.2024,17.01.2024,Children's Services,Education & Childrens Services - CS Dir,AMZNMKTPLACE,17.99,0,17.99,Leaving Care - Grants for Care Leavers,Miscellaneous retail
Buckinghamshire Council ,31.01.2024,17.01.2024,Children's Services,Education & Childrens Services - CS Dir,AMZNMKTPLACE,59.99,0,59.99,Leaving Care - Grants for Care Leavers,Miscellaneous retail
Buckinghamshire Council ,31.01.2024,17.01.2024,Resources,AH&R - Res Dir,HULL CITY COUNCIL,880.94,0,880.94,Awaiting Coding,Government services
Buckinghamshire Council ,31.01.2024,17.01.2024,Communities,ommunities - Trust Accounts,WICKES SLOUGH,18,0,18,General Repairs & Maintenance,Timber & building supplies
Buckinghamshire Council ,31.01.2024,17.01.2024,Communities,Housing & Homelessness & Regulatory PGS,WWW.BRITSAFE.ORG,252,0,252,Course Fees & Post Entry Training,Membership organisations
Buckinghamshire Council ,31.01.2024,17.01.2024,Resources,AH&R - Res Dir,FACEBK R395CY75X2,1.63,0,1.63,Permanent Recruitment Costs,Advertising services
Buckinghamshire Council ,31.01.2024,17.01.2024,Resources,AH&R - Res Dir,FACEBK N2RLXXF4X2,35,0,35,Permanent Recruitment Costs,Advertising services
Buckinghamshire Council ,31.01.2024,17.01.2024,Resources,AH&R - Res Dir,LINKEDIN ADS 9807850674,33.97,0,33.97,Permanent Recruitment Costs,Advertising services
Buckinghamshire Council ,31.01.2024,17.01.2024,Children's Services,Education & Childrens Services - CS Dir,EDF ENERGY-DOM,10,0,10,Sec 17: Financial Assistance One Off,Utilities
Buckinghamshire Council ,31.01.2024,17.01.2024,Children's Services,Education & Childrens Services - CS Dir,EDF ENERGY-DOM,10,0,10,Sec 17: Financial Assistance One Off,Utilities
Buckinghamshire Council ,31.01.2024,17.01.2024,Children's Services,Education & Childrens Services - CS Dir,AMZNMKTPLACE,16.99,0,16.99,Leaving Care - Grants for Care Leavers,Miscellaneous retail
Buckinghamshire Council ,31.01.2024,17.01.2024,Children's Services,Education & Childrens Services - CS Dir,AMZNMKTPLACE,19.87,0,19.87,General Provisions (Food),Miscellaneous retail
Buckinghamshire Council ,31.01.2024,17.01.2024,Deputy Chief Executive,AH&R- DCE Dir,AMZNMKTPLACE,73.82,0,73.82,Stationery & Office Supplies,Miscellaneous retail
Buckinghamshire Council ,31.01.2024,17.01.2024,Children's Services,Education & Childrens Services - CS Dir,CANVA* 04033-35193908,34.99,0,34.99,Marketing,"Commercial photo, art & graphic"
Buckinghamshire Council ,31.01.2024,16.01.2024,"Planning, Growth & Sustainability",Housing & Homelessness & Regulatory PGS,BKG*HOTEL AT BOOKING.C,218,0,218,Homelessness,Travel agencies
Buckinghamshire Council ,31.01.2024,16.01.2024,"Planning, Growth & Sustainability",Housing & Homelessness & Regulatory PGS,PREMIER INN,455,0,455,Homelessness,Premier Inn
Buckinghamshire Council ,31.01.2024,16.01.2024,"Planning, Growth & Sustainability",Housing & Homelessness & Regulatory PGS,TRAINLINE,49.39,0,49.39,Staff Travelling Expenses,Passenger railways
Buckinghamshire Council ,31.01.2024,16.01.2024,"Planning, Growth & Sustainability",Housing & Homelessness & Regulatory PGS,TRAINLINE,52.29,0,52.29,Staff Travelling Expenses,Passenger railways
Buckinghamshire Council ,31.01.2024,16.01.2024,Children's Services,Education & Childrens Services - CS Dir,AMZNMKTPLACE,39.99,0,39.99,Leaving Care - Grants for Care Leavers,Miscellaneous retail
Buckinghamshire Council ,31.01.2024,16.01.2024,Communities,Culture & Leisure - Communities Dir,HSQE LTD,12,2.4,14.4,"Courses, Conference and Seminar Fees",Schools
Buckinghamshire Council ,31.01.2024,16.01.2024,Children's Services,Education & Childrens Services - CS Dir,PREMIER INN,80.83,16.17,97,Sec 20/31: Specialist Services,Premier Inn
Buckinghamshire Council ,31.01.2024,16.01.2024,Communities,Climate Change & Environment - Community,ROADWARRIOR,12.14,0,12.14,Computer Support Services,"Programming, data processing & system design"
Buckinghamshire Council ,31.01.2024,16.01.2024,Deputy Chief Executive,Communities - DCE,WWW.ARGOS.CO.UK,222.45,44.49,266.94,Other Personal Needs,Department stores
Buckinghamshire Council ,31.01.2024,16.01.2024,Deputy Chief Executive,Communities - DCE,WWW.ARGOS.CO.UK,0.01,0,0.01,Other Personal Needs,Department stores
Buckinghamshire Council ,31.01.2024,16.01.2024,Deputy Chief Executive,Communities - DCE,WWW.ARGOS.CO.UK,93.29,18.66,111.95,Other Personal Needs,Department stores
Buckinghamshire Council ,31.01.2024,16.01.2024,Deputy Chief Executive,Communities - DCE,WWW.ARGOS.CO.UK,79.6,15.92,95.52,Other Personal Needs,Department stores
Buckinghamshire Council ,31.01.2024,16.01.2024,Deputy Chief Executive,Communities - DCE,WWW.ARGOS.CO.UK,0.03,0,0.03,Other Personal Needs,Department stores
Buckinghamshire Council ,31.01.2024,16.01.2024,Deputy Chief Executive,Communities - DCE,AO RETAIL LIMITED,282.5,56.5,339,Other Personal Needs,Household appliance stores
Buckinghamshire Council ,31.01.2024,16.01.2024,Deputy Chief Executive,Communities - DCE,AO RETAIL LIMITED,220,44,264,Other Personal Needs,Household appliance stores
Buckinghamshire Council ,31.01.2024,16.01.2024,Deputy Chief Executive,Communities - DCE,AO RETAIL LIMITED,843.33,168.67,"1,012.00",Other Personal Needs,Household appliance stores
Buckinghamshire Council ,31.01.2024,16.01.2024,Communities,Housing & Homelessness & Regulatory PGS,THE-IES.ORG,297,0,297,Professional Subscriptions re Employees,Membership organisations
Buckinghamshire Council ,31.01.2024,16.01.2024,Communities,Housing & Homelessness & Regulatory PGS,CHARTERED INSTITUTE OF EN,258,0,258,Professional Subscriptions re Employees,Charitable organisations
Buckinghamshire Council ,31.01.2024,16.01.2024,Resources,AH&R - Res Dir,ROYAL MAIL GROUP LTD,15.45,0,15.45,General Postage,Postal services
Buckinghamshire Council ,31.01.2024,16.01.2024,Communities,artnerships - Communities,AMZNMKTPLACE,192.97,0,192.97,Equipment,Miscellaneous retail
Buckinghamshire Council ,31.01.2024,16.01.2024,Children's Services,Education & Childrens Services - CS Dir,AMZNMKTPLACE,171.59,0,171.59,Consumable Supplies,Miscellaneous retail
Buckinghamshire Council ,31.01.2024,16.01.2024,"Planning, Growth & Sustainability",AH&R - PGS Dir,AMAZON.CO.UK,6.99,0,6.99,Administrative Equipment & Tools,Direct sales companies
Buckinghamshire Council ,31.01.2024,16.01.2024,Communities,Special Expenses,WWW.SCREWFIX.COM,84.98,0,84.98,General Repairs & Maintenance,Timber & building supplies
Buckinghamshire Council ,31.01.2024,16.01.2024,Adults and Health,Communities - Adults & Health,AMZNMKTPLACE,69.98,0,69.98,Protective Clothing & Uniforms,Miscellaneous retail
Buckinghamshire Council ,31.01.2024,16.01.2024,Children's Services,Education & Childrens Services - CS Dir,TICKETS 101928697,15,0,15,Activities & General Recreation,Theatres and ticket agencies
Buckinghamshire Council ,31.01.2024,16.01.2024,Children's Services,Education & Childrens Services - CS Dir,SAINSBURYS S/MKTS,5.58,0,5.58,Equipment (including storage),Grocery stores
Buckinghamshire Council ,31.01.2024,16.01.2024,Communities,Climate Change & Environment - Community,COMPLETE FOOD SAFETY,94.38,0,94.38,Waste Prevention costs,Miscellaneous retail
Buckinghamshire Council ,31.01.2024,16.01.2024,Children's Services,Education & Childrens Services - CS Dir,AMZNMKTPLACE,89.96,0,89.96,Leaving Care - Grants for Care Leavers,Miscellaneous retail
Buckinghamshire Council ,31.01.2024,16.01.2024,Children's Services,Education & Childrens Services - CS Dir,THE WORKS,6,0,6,Awaiting Coding,Discount stores
Buckinghamshire Council ,31.01.2024,16.01.2024,Children's Services,Education & Childrens Services - CS Dir,SENSORY TOYS4U RETAIL,20.96,0,20.96,Awaiting Coding,Miscellaneous retail
Buckinghamshire Council ,31.01.2024,16.01.2024,Children's Services,Education & Childrens Services - CS Dir,WWW.THERANGE.CO.UK,34.93,0,34.93,Leaving Care - Grants for Care Leavers,Misc. home furnishing
Buckinghamshire Council ,31.01.2024,16.01.2024,Children's Services,Education & Childrens Services - CS Dir,DRIVING LICENCE WEB,34,0,34,Leaving Care  - Financial Assistance,Government services
Buckinghamshire Council ,31.01.2024,16.01.2024,Children's Services,Education & Childrens Services - CS Dir,DUNELM SOFTFURNISHINGS,44.95,0,44.95,Leaving Care - Grants for Care Leavers,Furniture & home furnishing
Buckinghamshire Council ,31.01.2024,16.01.2024,Children's Services,Education & Childrens Services - CS Dir,AMZNBUSINESS,8.29,1.66,9.95,Health & Safety Supplies & Services,Miscellaneous retail
Buckinghamshire Council ,31.01.2024,16.01.2024,Children's Services,Education & Childrens Services - CS Dir,AMZNBUSINESS,14.7,0,14.7,Educational Equipment,Miscellaneous retail
Buckinghamshire Council ,31.01.2024,16.01.2024,Children's Services,Education & Childrens Services - CS Dir,AMZNMKTPLACE,38.7,7.74,46.44,IT Equipment Purchase,Miscellaneous retail
Buckinghamshire Council ,31.01.2024,16.01.2024,Children's Services,Education & Childrens Services - CS Dir,AMZNMKTPLACE,0.01,0,0.01,IT Equipment Purchase,Miscellaneous retail
Buckinghamshire Council ,31.01.2024,16.01.2024,"Planning, Growth & Sustainability",Housing & Homelessness & Regulatory PGS,BT BUSINESS BILL,352.14,0,352.14,Telephones,Phone services
Buckinghamshire Council ,31.01.2024,16.01.2024,"Planning, Growth & Sustainability",Special Expenses,B&Q LTD,25,0,25,General Repairs & Maintenance,Timber & building supplies
Buckinghamshire Council ,31.01.2024,16.01.2024,Communities,Housing & Homelessness & Regulatory Comm,E.ON NEXT,18.77,0,18.77,Electricity,Utilities
Buckinghamshire Council ,31.01.2024,16.01.2024,Communities,Housing & Homelessness & Regulatory Comm,BRITISH GAS,59.37,0,59.37,Gas,Utilities
Buckinghamshire Council ,31.01.2024,16.01.2024,Adults and Health,Health & Wellbeing - Adults & Health Dir,AMZNMKTPLACE,489.48,0,489.48,Other General Office Expenses,Miscellaneous retail
Buckinghamshire Council ,31.01.2024,15.01.2024,Adults and Health,Health & Wellbeing - Adults & Health Dir,ASDA SUPERSTORE,5.8,0,5.8,Awaiting Coding,Grocery stores
Buckinghamshire Council ,31.01.2024,15.01.2024,Children's Services,Education & Childrens Services - CS Dir,TRAVELODGE GB0000,55.06,0,55.06,Sec 20/31: Supp for Contact,Travelodge
Buckinghamshire Council ,31.01.2024,15.01.2024,Children's Services,Education & Childrens Services - CS Dir,TRAINLINE,137.49,0,137.49,Sec 20/31: Supp for Contact,Passenger railways
Buckinghamshire Council ,31.01.2024,15.01.2024,Children's Services,Education & Childrens Services - CS Dir,TRAINLINE,23.59,0,23.59,Sec 20/31: Supp for Contact,Passenger railways
Buckinghamshire Council ,31.01.2024,15.01.2024,"Planning, Growth & Sustainability",Climate Change & Environment - PGS,TRAINLINE,49.39,0,49.39,Staff Travelling Expenses,Passenger railways
Buckinghamshire Council ,31.01.2024,15.01.2024,Children's Services,Education & Childrens Services - CS Dir,AMZNMKTPLACE,149.9,0,149.9,Leaving Care - Grants for Care Leavers,Miscellaneous retail
Buckinghamshire Council ,31.01.2024,15.01.2024,Children's Services,Education & Childrens Services - CS Dir,AMZNMKTPLACE,70.99,0,70.99,Leaving Care - Grants for Care Leavers,Miscellaneous retail
Buckinghamshire Council ,31.01.2024,15.01.2024,Children's Services,Education & Childrens Services - CS Dir,AMZNMKTPLACE,83.99,0,83.99,Leaving Care - Grants for Care Leavers,Miscellaneous retail
Buckinghamshire Council ,31.01.2024,15.01.2024,Children's Services,Education & Childrens Services - CS Dir,AO RETAIL LIMITED,-35,0,-35,Leaving Care - Grants for Care Leavers,Household appliance stores
Buckinghamshire Council ,31.01.2024,15.01.2024,Children's Services,Education & Childrens Services - CS Dir,AMZNMKTPLACE,8.99,0,8.99,Repair and Maintenance of Equipment,Miscellaneous retail
Buckinghamshire Council ,31.01.2024,15.01.2024,Deputy Chief Executive,Communities - DCE,AO RETAIL LIMITED,220,44,264,Other Personal Needs,Household appliance stores
Buckinghamshire Council ,31.01.2024,15.01.2024,Deputy Chief Executive,Communities - DCE,WWW.ARGOS.CO.UK,229.95,45.99,275.94,Other Personal Needs,Department stores
Buckinghamshire Council ,31.01.2024,15.01.2024,Deputy Chief Executive,Communities - DCE,WWW.ARGOS.CO.UK,0.01,0,0.01,Other Personal Needs,Department stores
Buckinghamshire Council ,31.01.2024,15.01.2024,Children's Services,Education & Childrens Services - CS Dir,BUCKINGHAM HOTELS,"1,890.00",0,"1,890.00",Sec 17: Accommodation,"Hotels, motels & resorts"
Buckinghamshire Council ,31.01.2024,15.01.2024,Communities,Housing & Homelessness & Regulatory Comm,GEORGE BROWNS LTD CHESHAM,49.25,0,49.25,Maintenance of Grounds,Lawn & garden supply/nursery
Buckinghamshire Council ,31.01.2024,15.01.2024,Children's Services,Education & Childrens Services - CS Dir,POSTURITE LTD,358.44,0,358.44,Other Equipment and Materials,Misc. home furnishing
Buckinghamshire Council ,31.01.2024,15.01.2024,Children's Services,Education & Childrens Services - CS Dir,UTILITA ENERGY LIMITED,600,0,600,General Repairs & Maintenance,Utilities
Buckinghamshire Council ,31.01.2024,15.01.2024,"Planning, Growth & Sustainability",AH&R - PGS Dir,WWW.SCREWFIX.COM,18.75,0,18.75,Other Equipment and Materials,Timber & building supplies
Buckinghamshire Council ,31.01.2024,15.01.2024,Children's Services,Education & Childrens Services - CS Dir,FREEDOM PROGRAMME LIMITED,12,0,12,Sec 17: Financial Assistance One Off,Schools
Buckinghamshire Council ,31.01.2024,15.01.2024,"Planning, Growth & Sustainability",AH&R - PGS Dir,TOOLSTATION LTD,7.98,0,7.98,General Repairs & Maintenance,Timber & building supplies
Buckinghamshire Council ,31.01.2024,15.01.2024,Communities,Culture & Leisure - Communities Dir,TESCO STORES 3099,6.2,0,6.2,Events Expenditure,Grocery stores
Buckinghamshire Council ,31.01.2024,15.01.2024,Children's Services,Education & Childrens Services - CS Dir,LENOVO,310,0,310,IT Equipment Purchase,Direct sales companies
Buckinghamshire Council ,31.01.2024,15.01.2024,Children's Services,Education & Childrens Services - CS Dir,AMZNMKTPLACE,8.95,0,8.95,Leaving Care - Grants for Care Leavers,Miscellaneous retail
Buckinghamshire Council ,31.01.2024,15.01.2024,Children's Services,Education & Childrens Services - CS Dir,AMZNMKTPLACE,299,0,299,Leaving Care - Grants for Care Leavers,Miscellaneous retail
Buckinghamshire Council ,31.01.2024,15.01.2024,Children's Services,Education & Childrens Services - CS Dir,AMZNMKTPLACE,87.99,0,87.99,Leaving Care - Grants for Care Leavers,Miscellaneous retail
Buckinghamshire Council ,31.01.2024,15.01.2024,Children's Services,Education & Childrens Services - CS Dir,ACCESS HEMEL HEMPSTEAD,-31.35,0,-31.35,Sec 20/31: Financial Assistance,Warehousing
Buckinghamshire Council ,31.01.2024,15.01.2024,Children's Services,Education & Childrens Services - CS Dir,DOMINO S PIZZA,50.5,0,50.5,Subsistence,Restaurants
Buckinghamshire Council ,31.01.2024,15.01.2024,Deputy Chief Executive,AH&R- DCE Dir,BIRMINGHAM METROPOLE,25,5,30,"Courses, Conference and Seminar Fees","Hotels, motels & resorts"
Buckinghamshire Council ,31.01.2024,15.01.2024,Resources,AH&R - Res Dir,SUMUP  *RONALD FLETCHER &,"1,200.25",0,"1,200.25",Professional Services (non curriculum) - External,Professional services
Buckinghamshire Council ,31.01.2024,15.01.2024,Adults and Health,Health & Wellbeing - Adults & Health Dir,TESCO STORES 5135,236.01,0,236.01,General Provisions (Food),Grocery stores
Buckinghamshire Council ,31.01.2024,15.01.2024,"Planning, Growth & Sustainability",Planning & Regeneration - PGS,SUMUP  *ALI TAXIS,7.5,0,7.5,Staff Travelling Expenses,Taxicabs & limousines
Buckinghamshire Council ,31.01.2024,15.01.2024,"Planning, Growth & Sustainability",Planning & Regeneration - PGS,TRAINLINE,19.05,0,19.05,Staff Travelling Expenses,Passenger railways
Buckinghamshire Council ,31.01.2024,15.01.2024,"Planning, Growth & Sustainability",AH&R - PGS Dir,WWW.ICO.ORG.UK,40,0,40,Subscriptions to National Bodies,Government services
Buckinghamshire Council ,31.01.2024,15.01.2024,Adults and Health,Health & Wellbeing - Adults & Health Dir,CHILTERN RAILWAYS,47.9,0,47.9,Staff Travelling Expenses,Passenger railways
Buckinghamshire Council ,31.01.2024,15.01.2024,Children's Services,Education & Childrens Services - CS Dir,LIDL GB  HIGH WYCOMBE,4.15,0,4.15,Miscellaneous (Other)  Expenses,Grocery stores
Buckinghamshire Council ,31.01.2024,15.01.2024,Adults and Health,Health & Wellbeing - Adults & Health Dir,ASDA GROCERIES ONLINE,82.15,0,82.15,General Provisions (Food),Grocery stores
Buckinghamshire Council ,31.01.2024,15.01.2024,Adults and Health,Health & Wellbeing - Adults & Health Dir,ASDA GROCERIES ONLINE,-0.41,0,-0.41,General Provisions (Food),Grocery stores
Buckinghamshire Council ,31.01.2024,15.01.2024,Communities,Transport - Communities Dir,ROBERT DYAS AMERSHAM,1.98,0,1.98,Awaiting Coding,Hardware stores
Buckinghamshire Council ,31.01.2024,15.01.2024,Communities,artnerships - Communities,BT BUSINESS BILL,64,12.8,76.8,Telephones,Phone services
Buckinghamshire Council ,31.01.2024,15.01.2024,Communities,artnerships - Communities,BT BUSINESS BILL,0.01,0,0.01,Telephones,Phone services
Buckinghamshire Council ,31.01.2024,15.01.2024,Children's Services,Education & Childrens Services - CS Dir,THE UNIVERSITY OF NOTTING,"2,629.46",0,"2,629.46",Leaving Care - Higher Education Supp,Colleges & universities
Buckinghamshire Council ,31.01.2024,14.01.2024,Children's Services,Education & Childrens Services - CS Dir,AMZNMKTPLACE,103.99,0,103.99,Leaving Care - Grants for Care Leavers,Miscellaneous retail
Buckinghamshire Council ,31.01.2024,14.01.2024,Children's Services,Education & Childrens Services - CS Dir,AMZNMKTPLACE,89.69,0,89.69,Leaving Care - Grants for Care Leavers,Miscellaneous retail
Buckinghamshire Council ,31.01.2024,14.01.2024,Children's Services,Education & Childrens Services - CS Dir,AMAZON PRIME,8.99,0,8.99,General Provisions (Food),Continuous subscriptions
Buckinghamshire Council ,31.01.2024,14.01.2024,Communities,Culture & Leisure - Communities Dir,EVENTBRITE.COM ORG FEE,99,0,99,Events Expenditure,Computer software stores
Buckinghamshire Council ,31.01.2024,14.01.2024,Communities,Leader - PGS,MAILCHIMP,54.77,0,54.77,Software Support,
Buckinghamshire Council ,31.01.2024,13.01.2024,Children's Services,Education & Childrens Services - CS Dir,AMAZON.CO.UK,83.34,0,83.34,"Exp of School, Club & College Activities",Direct sales companies
Buckinghamshire Council ,31.01.2024,13.01.2024,Children's Services,Education & Childrens Services - CS Dir,AMZNMKTPLACE,79.99,0,79.99,Leaving Care - Grants for Care Leavers,Miscellaneous retail
Buckinghamshire Council ,31.01.2024,13.01.2024,Children's Services,Education & Childrens Services - CS Dir,AMZNMKTPLACE,275.79,0,275.79,Leaving Care - Grants for Care Leavers,Miscellaneous retail
Buckinghamshire Council ,31.01.2024,13.01.2024,Children's Services,Education & Childrens Services - CS Dir,WM MORRISONS STORE,4.9,0,4.9,Awaiting Coding,Grocery stores
Buckinghamshire Council ,31.01.2024,13.01.2024,Children's Services,Education & Childrens Services - CS Dir,AJ WORLD FOODS,31.16,0,31.16,Awaiting Coding,Grocery stores
Buckinghamshire Council ,31.01.2024,13.01.2024,"Planning, Growth & Sustainability",Planning & Regeneration - PGS,OXFORD BUS COMPANY,1,0,1,Staff Travelling Expenses,"Buses, charter & tour"
Buckinghamshire Council ,31.01.2024,13.01.2024,Deputy Chief Executive,AH&R- DCE Dir,OXFORD BUS COMPANY,1,0,1,Staff Travelling Expenses,"Buses, charter & tour"
Buckinghamshire Council ,31.01.2024,13.01.2024,Resources,AH&R - Res Dir,OPTIMAL WORKSHOP,201.6,0,201.6,Computer Consumables,Computer software stores
Buckinghamshire Council ,31.01.2024,13.01.2024,Resources,AH&R - Res Dir,CLOUDFLARE,206.45,0,206.45,Computer Consumables,Computer software stores
Buckinghamshire Council ,31.01.2024,13.01.2024,Communities,Culture & Leisure - Communities Dir,IONOS CLOUD LTD,137.6,0,137.6,Website Development,Computer network information services
Buckinghamshire Council ,31.01.2024,12.01.2024,Resources,AH&R - Res Dir,THE OXFORDSHIRE TAXI COMP,500,0,500,Staff Travelling Expenses,Taxicabs & limousines
Buckinghamshire Council ,31.01.2024,12.01.2024,"Planning, Growth & Sustainability",Housing & Homelessness & Regulatory PGS,CHRISS MOTEL,50,0,50,Homelessness,"Hotels, motels & resorts"
Buckinghamshire Council ,31.01.2024,12.01.2024,"Planning, Growth & Sustainability",Housing & Homelessness & Regulatory PGS,JOHNS CARPETS,578,0,578,Miscellaneous (Other)  Expenses,Floor covering stores
Buckinghamshire Council ,31.01.2024,12.01.2024,"Planning, Growth & Sustainability",Housing & Homelessness & Regulatory PGS,8883O84415* ABBEYLODGE,468.41,0,468.41,Homelessness,Tourist attractions and exhibitions
Buckinghamshire Council ,31.01.2024,12.01.2024,"Planning, Growth & Sustainability",Housing & Homelessness & Regulatory PGS,HOTEL AT BOOKING.COM,350,0,350,Homelessness,"Hotels, motels & resorts"
Buckinghamshire Council ,31.01.2024,12.01.2024,Children's Services,Education & Childrens Services - CS Dir,SENSORYTOYS4U,31.82,0,31.82,"Exp of School, Club & College Activities","Hobby, toy & game shops"
Buckinghamshire Council ,31.01.2024,12.01.2024,Children's Services,Education & Childrens Services - CS Dir,ONBUY.COM,159.99,0,159.99,Leaving Care - Grants for Care Leavers,
Buckinghamshire Council ,31.01.2024,12.01.2024,Children's Services,Education & Childrens Services - CS Dir,AO RETAIL LIMITED,932,0,932,Leaving Care - Grants for Care Leavers,Household appliance stores
Buckinghamshire Council ,31.01.2024,12.01.2024,Children's Services,Education & Childrens Services - CS Dir,AO RETAIL LIMITED,100,0,100,Leaving Care - Grants for Care Leavers,Household appliance stores
Buckinghamshire Council ,31.01.2024,12.01.2024,Children's Services,Education & Childrens Services - CS Dir,WWW.THERANGE.CO.UK,249.99,0,249.99,Leaving Care - Grants for Care Leavers,Misc. home furnishing
Buckinghamshire Council ,31.01.2024,12.01.2024,Deputy Chief Executive,Communities - DCE,WWW.ARGOS.CO.UK,37.95,7.59,45.54,Other Personal Needs,Department stores
Buckinghamshire Council ,31.01.2024,12.01.2024,Deputy Chief Executive,Communities - DCE,WWW.ARGOS.CO.UK,0.01,0,0.01,Other Personal Needs,Department stores
Buckinghamshire Council ,31.01.2024,12.01.2024,Deputy Chief Executive,Communities - DCE,WWW.ARGOS.CO.UK,69.95,13.99,83.94,Other Personal Needs,Department stores
Buckinghamshire Council ,31.01.2024,12.01.2024,Deputy Chief Executive,Communities - DCE,WWW.ARGOS.CO.UK,0.01,0,0.01,Other Personal Needs,Department stores
Buckinghamshire Council ,31.01.2024,12.01.2024,Children's Services,Education & Childrens Services - CS Dir,TRAVELODGE GB0000,39.76,0,39.76,Sec 20/31: Supp for Contact,Travelodge
Buckinghamshire Council ,31.01.2024,12.01.2024,Children's Services,Education & Childrens Services - CS Dir,TRAVELODGE GB0000,44.86,0,44.86,Sec 20/31: Supp for Contact,Travelodge
Buckinghamshire Council ,31.01.2024,12.01.2024,Deputy Chief Executive,Communities - DCE,AO RETAIL LIMITED,868.33,173.67,"1,042.00",Other Personal Needs,Household appliance stores
Buckinghamshire Council ,31.01.2024,12.01.2024,Deputy Chief Executive,Communities - DCE,AO RETAIL LIMITED,215.83,43.17,259,Other Personal Needs,Household appliance stores
Buckinghamshire Council ,31.01.2024,12.01.2024,Deputy Chief Executive,Communities - DCE,WWW.ARGOS.CO.UK,395.75,79.15,474.9,Other Personal Needs,Department stores
Buckinghamshire Council ,31.01.2024,12.01.2024,Deputy Chief Executive,Communities - DCE,WWW.ARGOS.CO.UK,0.05,0,0.05,Other Personal Needs,Department stores
Buckinghamshire Council ,31.01.2024,12.01.2024,Communities,Housing & Homelessness & Regulatory Comm,ASHRIDGE TREES LIMITED,159.94,0,159.94,Maintenance of Grounds,Lawn & garden supply/nursery
Buckinghamshire Council ,31.01.2024,12.01.2024,"Planning, Growth & Sustainability",AH&R - PGS Dir,AMAZON.CO.UK,16.49,0,16.49,General Repairs & Maintenance,Direct sales companies
Buckinghamshire Council ,31.01.2024,12.01.2024,Children's Services,Education & Childrens Services - CS Dir,MAILCHIMP,245.65,0,245.65,Service Development,
Buckinghamshire Council ,31.01.2024,12.01.2024,Children's Services,Education & Childrens Services - CS Dir,AMZNMKTPLACE,54.9,10.99,65.89,Educational Equipment,Miscellaneous retail
Buckinghamshire Council ,31.01.2024,12.01.2024,Children's Services,Education & Childrens Services - CS Dir,WWW.JOHNLEWIS.COM,40,8,48,Educational Equipment,Department stores
Buckinghamshire Council ,31.01.2024,12.01.2024,Children's Services,Education & Childrens Services - CS Dir,AMZNMKTPLACE,47.96,0,47.96,Equipment (including storage),Miscellaneous retail
Buckinghamshire Council ,31.01.2024,12.01.2024,"Planning, Growth & Sustainability",AH&R - PGS Dir,ASDA SUPERSTORE,11.05,0,11.05,Cleaning & Domestic Equipment,Grocery stores
Buckinghamshire Council ,31.01.2024,12.01.2024,"Planning, Growth & Sustainability",AH&R - PGS Dir,ASDA SUPERSTORE,14.5,0,14.5,General Provisions (Food),Grocery stores
Buckinghamshire Council ,31.01.2024,12.01.2024,"Planning, Growth & Sustainability",AH&R - PGS Dir,BARRIER2GO* #B2GW7625,52.8,0,52.8,Miscellaneous (Other)  Expenses,Misc commercial machines equipment
Buckinghamshire Council ,31.01.2024,12.01.2024,Adults and Health,Health & Wellbeing - Adults & Health Dir,FAIRPRICE STORE & SLOUGH,1.29,0,1.29,Activities & General Recreation,Grocery stores
Buckinghamshire Council ,31.01.2024,12.01.2024,Children's Services,Education & Childrens Services - CS Dir,MYTRIPBUS* REDLINE BUS,8,0,8,Sec 20/31: Supp for Contact,
Buckinghamshire Council ,31.01.2024,12.01.2024,Children's Services,Education & Childrens Services - CS Dir,MYTRIPBUS* REDLINE BUS,8,0,8,Sec 20/31: Supp for Contact,
Buckinghamshire Council ,31.01.2024,12.01.2024,Children's Services,Education & Childrens Services - CS Dir,MYTRIPBUS* REDLINE BUS,8,0,8,Sec 20/31: Supp for Contact,
Buckinghamshire Council ,31.01.2024,12.01.2024,Children's Services,Education & Childrens Services - CS Dir,FIRST BUS - WEB,23.4,0,23.4,Sec 20/31: Supp for Contact,"Buses, charter & tour"
Buckinghamshire Council ,31.01.2024,12.01.2024,Children's Services,Education & Childrens Services - CS Dir,TRAINLINE,232.89,0,232.89,Sec 20/31: Supp for Contact,Passenger railways
Buckinghamshire Council ,31.01.2024,11.01.2024,Children's Services,Education & Childrens Services - CS Dir,BKG*HOTEL AT BOOKING.C,220,0,220,Staff Travelling Expenses,Travel agencies
Buckinghamshire Council ,31.01.2024,11.01.2024,Children's Services,Education & Childrens Services - CS Dir,AMAZON.CO.UK,6.89,0,6.89,LKD Aerial Survey,Direct sales companies
Buckinghamshire Council ,31.01.2024,11.01.2024,Deputy Chief Executive,Communities - DCE,AO RETAIL LIMITED,132.5,26.5,159,Other Personal Needs,Household appliance stores
Buckinghamshire Council ,31.01.2024,11.01.2024,Deputy Chief Executive,Communities - DCE,AO RETAIL LIMITED,701.66,140.34,842,Other Personal Needs,Household appliance stores
Buckinghamshire Council ,31.01.2024,11.01.2024,Deputy Chief Executive,Communities - DCE,AO RETAIL LIMITED,909.16,181.84,"1,091.00",Other Personal Needs,Household appliance stores
Buckinghamshire Council ,31.01.2024,11.01.2024,Deputy Chief Executive,Communities - DCE,WWW.ARGOS.CO.UK,311.62,62.33,373.95,Other Personal Needs,Department stores
Buckinghamshire Council ,31.01.2024,11.01.2024,Communities,Culture & Leisure - Communities Dir,AMZNMKTPLACE,204.9,0,204.9,Events Expenditure,Miscellaneous retail
Buckinghamshire Council ,31.01.2024,11.01.2024,Children's Services,Education & Childrens Services - CS Dir,A1 TAXI SERVICE,700,140,840,Sec 20/31: Transport,Taxicabs & limousines
Buckinghamshire Council ,31.01.2024,11.01.2024,Children's Services,Education & Childrens Services - CS Dir,AMZNMKTPLACE,20.98,0,20.98,Other Employees Expenses,Miscellaneous retail
Buckinghamshire Council ,31.01.2024,11.01.2024,Deputy Chief Executive,AH&R- DCE Dir,SQ *GROUP CARDS,4.79,0,4.79,Stationery & Office Supplies,"Gift, card & novelty shops"
Buckinghamshire Council ,31.01.2024,11.01.2024,Communities,artnerships - Communities,EB *YOUTH INNOVATION C,100,0,100,Miscellaneous (Other)  Expenses,Misc business services
Buckinghamshire Council ,31.01.2024,11.01.2024,"Planning, Growth & Sustainability",AH&R - PGS Dir,WH SMITH HIGH WYCOMBE,25,0,25,General Repairs & Maintenance,Newspapers / newsagents
Buckinghamshire Council ,31.01.2024,11.01.2024,Children's Services,Education & Childrens Services - CS Dir,AMAZON.CO.UK,21.24,0,21.24,"Books, Records, Films & Oth Publications",Direct sales companies
Buckinghamshire Council ,31.01.2024,11.01.2024,Children's Services,Education & Childrens Services - CS Dir,LEBARA MOBILE LIMITED,25,0,25,Computer Support Services,Computer network information services
Buckinghamshire Council ,31.01.2024,11.01.2024,Children's Services,Education & Childrens Services - CS Dir,AMZNMKTPLACE,19.99,0,19.99,Other Equipment and Materials,Miscellaneous retail
Buckinghamshire Council ,31.01.2024,11.01.2024,Adults and Health,Health & Wellbeing - Adults & Health Dir,HOTEL AT BOOKING.COM,566.95,0,566.95,Other Short Term Support,"Hotels, motels & resorts"
Buckinghamshire Council ,31.01.2024,11.01.2024,Communities,artnerships - Communities,DOCUSIGN INC.,336,0,336,Miscellaneous (Other)  Expenses,
Buckinghamshire Council ,31.01.2024,11.01.2024,Children's Services,Education & Childrens Services - CS Dir,IKEA LTD SHOP ONLINE,369,0,369,Leaving Care - Grants for Care Leavers,Furniture & home furnishing
Buckinghamshire Council ,31.01.2024,11.01.2024,Adults and Health,Health & Wellbeing - Adults & Health Dir,AMZNMKTPLACE,6.94,0,6.94,Stationery & Office Supplies,Miscellaneous retail
Buckinghamshire Council ,31.01.2024,11.01.2024,"Planning, Growth & Sustainability",Planning & Regeneration - PGS,AMAZON.CO.UK,24.7,0,24.7,IT Equipment Purchase,Direct sales companies
Buckinghamshire Council ,31.01.2024,11.01.2024,Children's Services,Education & Childrens Services - CS Dir,DISCLOSURE & BARRING,13,0,13,Health & Safety Supplies & Services,Government services
Buckinghamshire Council ,31.01.2024,11.01.2024,"Planning, Growth & Sustainability",Housing & Homelessness & Regulatory PGS,AMZNMKTPLACE,-6,0,-6,Stationery & Office Supplies,Miscellaneous retail
Buckinghamshire Council ,31.01.2024,11.01.2024,Communities,Housing & Homelessness & Regulatory Comm,WWW.CROMWELL.CO.UK,57.35,0,57.35,Protective Clothing & Uniforms,Hardware Equipment & Suppliers
Buckinghamshire Council ,31.01.2024,11.01.2024,Resources,AH&R - Res Dir,FASTHOSTS,10.2,0,10.2,IT - Computer Network Charges,Computer network information services
Buckinghamshire Council ,31.01.2024,11.01.2024,Resources,AH&R - Res Dir,FASTHOSTS,8.99,0,8.99,IT - Computer Network Charges,Computer network information services
Buckinghamshire Council ,31.01.2024,11.01.2024,Resources,AH&R - Res Dir,FASTHOSTS,73.2,0,73.2,IT - Computer Network Charges,Computer network information services
Buckinghamshire Council ,31.01.2024,11.01.2024,Resources,AH&R - Res Dir,FASTHOSTS,46.75,0,46.75,IT - Computer Network Charges,Computer network information services
Buckinghamshire Council ,31.01.2024,11.01.2024,Resources,AH&R - Res Dir,FASTHOSTS,73.2,0,73.2,IT - Computer Network Charges,Computer network information services
Buckinghamshire Council ,31.01.2024,11.01.2024,Resources,AH&R - Res Dir,FASTHOSTS,10.2,0,10.2,IT - Computer Network Charges,Computer network information services
Buckinghamshire Council ,31.01.2024,11.01.2024,Resources,AH&R - Res Dir,FASTHOSTS,7.2,0,7.2,IT - Computer Network Charges,Computer network information services
Buckinghamshire Council ,31.01.2024,11.01.2024,Resources,AH&R - Res Dir,FASTHOSTS,8.4,0,8.4,IT - Computer Network Charges,Computer network information services
Buckinghamshire Council ,31.01.2024,10.01.2024,Adults and Health,Health & Wellbeing - Adults & Health Dir,AMAZON.CO.UK,44.75,0,44.75,Stationery & Office Supplies,Direct sales companies
Buckinghamshire Council ,31.01.2024,10.01.2024,Resources,Communities - Resources,AMZNMKTPLACE,39.95,0,39.95,Emergency Expenses,Miscellaneous retail
Buckinghamshire Council ,31.01.2024,10.01.2024,Resources,Communities - Resources,AMZNMKTPLACE,57.99,0,57.99,Emergency Expenses,Miscellaneous retail
Buckinghamshire Council ,31.01.2024,10.01.2024,"Planning, Growth & Sustainability",Housing & Homelessness & Regulatory PGS,PREMIER INN,479,0,479,Homelessness,Premier Inn
Buckinghamshire Council ,31.01.2024,10.01.2024,"Planning, Growth & Sustainability",Housing & Homelessness & Regulatory PGS,AMZNMKTPLACE,77.88,0,77.88,Miscellaneous (Other)  Expenses,Miscellaneous retail
Buckinghamshire Council ,31.01.2024,10.01.2024,Children's Services,Education & Childrens Services - CS Dir,TRAVELODGE GB0000,67.3,0,67.3,Sec 20/31: Supp for Contact,Travelodge
Buckinghamshire Council ,31.01.2024,10.01.2024,Children's Services,Education & Childrens Services - CS Dir,KINGSTON UNIVERSITY,"3,072.00",0,"3,072.00",Leaving Care - Higher Education Supp,Colleges & universities
Buckinghamshire Council ,31.01.2024,10.01.2024,Children's Services,Education & Childrens Services - CS Dir,AMZNMKTPLACE,2.99,0,2.99,Other Personal Needs,Miscellaneous retail
Buckinghamshire Council ,31.01.2024,10.01.2024,Deputy Chief Executive,Communities - DCE,AO RETAIL LIMITED,288.33,57.67,346,Other Personal Needs,Household appliance stores
Buckinghamshire Council ,31.01.2024,10.01.2024,Deputy Chief Executive,Communities - DCE,AO RETAIL LIMITED,236.66,47.34,284,Other Personal Needs,Household appliance stores
Buckinghamshire Council ,31.01.2024,10.01.2024,CC Obsolete Cost Centres,Obsolete Cost Centres,TRAVELODGE GB0000,53.02,0,53.02,"Courses, Conference and Seminar Fees",Travelodge
Buckinghamshire Council ,31.01.2024,10.01.2024,CC Obsolete Cost Centres,Obsolete Cost Centres,TRAINLINE,137.49,0,137.49,Staff Travelling Expenses,Passenger railways
Buckinghamshire Council ,31.01.2024,10.01.2024,Children's Services,Education & Childrens Services - CS Dir,ALLIED VEHICLES,"1,155.00",0,"1,155.00",Sec 20/31: Financial Assistance,Automobile dealers - new & used
Buckinghamshire Council ,31.01.2024,10.01.2024,Children's Services,Education & Childrens Services - CS Dir,PEARSON EDUCATION LTD.,78.81,0,78.81,Training Materials,Schools
Buckinghamshire Council ,31.01.2024,10.01.2024,"Planning, Growth & Sustainability",Housing & Homelessness & Regulatory PGS,LAND REGISTRY ECOM CCC,3,0,3,Homelessness,Government services
Buckinghamshire Council ,31.01.2024,10.01.2024,Resources,AH&R - Res Dir,HTTPS://WWW.PLYMOUTH.G,11,0,11,Miscellaneous (Other)  Expenses,Government services
Buckinghamshire Council ,31.01.2024,10.01.2024,Children's Services,Education & Childrens Services - CS Dir,PREMIER INN,70.13,0,70.13,Support for Foster Carers,Premier Inn
Buckinghamshire Council ,31.01.2024,10.01.2024,Communities,Culture & Leisure - Communities Dir,FACEBK *8BQ7FU3KB2,20.61,0,20.61,Advertising,Advertising services
Buckinghamshire Council ,31.01.2024,10.01.2024,Children's Services,Education & Childrens Services - CS Dir,AMAZON PRIME,8.99,0,8.99,Miscellaneous (Other)  Expenses,Continuous subscriptions
Buckinghamshire Council ,31.01.2024,10.01.2024,Children's Services,Education & Childrens Services - CS Dir,AMZNMKTPLACE,125.29,0,125.29,Miscellaneous (Other)  Expenses,Miscellaneous retail
Buckinghamshire Council ,31.01.2024,10.01.2024,Deputy Chief Executive,AH&R- DCE Dir,LOCK & KEY CENTRE,151.27,0,151.27,Other Personal Needs,Professional services
Buckinghamshire Council ,31.01.2024,10.01.2024,"Planning, Growth & Sustainability",Planning & Regeneration - PGS,ARRIVA THE SHIRES LIMITED,1.6,0,1.6,Staff Travelling Expenses,"Buses, charter & tour"
Buckinghamshire Council ,31.01.2024,10.01.2024,"Planning, Growth & Sustainability",Planning & Regeneration - PGS,UBR* PENDING.UBER.COM,6.97,0,6.97,Staff Travelling Expenses,Taxicabs & limousines
Buckinghamshire Council ,31.01.2024,10.01.2024,"Planning, Growth & Sustainability",Planning & Regeneration - PGS,TRAINLINE,19.05,0,19.05,Staff Travelling Expenses,Passenger railways
Buckinghamshire Council ,31.01.2024,10.01.2024,Resources,AH&R - Res Dir,LINKEDIN ADS 9785522834,84.7,0,84.7,Permanent Recruitment Costs,Advertising services
Buckinghamshire Council ,31.01.2024,10.01.2024,Children's Services,Education & Childrens Services - CS Dir,BUCKINGHAMSHIRE CNCL,35,0,35,Sec 20/31: Financial Assistance,Government services
Buckinghamshire Council ,31.01.2024,10.01.2024,Children's Services,Education & Childrens Services - CS Dir,BUCKINGHAMSHIRE CNCL,33,0,33,Sec 20/31: Financial Assistance,Government services
Buckinghamshire Council ,31.01.2024,10.01.2024,Children's Services,Education & Childrens Services - CS Dir,HIGH SPEED TRAINING,90,0,90,Awaiting Coding,Schools
Buckinghamshire Council ,31.01.2024,10.01.2024,Adults and Health,Health & Wellbeing - Adults & Health Dir,WM MORRISONS STORE,25.58,0,25.58,General Provisions (Food),Grocery stores
Buckinghamshire Council ,31.01.2024,10.01.2024,Communities,artnerships - Communities,CAR PARK CHARGES,1.6,0,1.6,Miscellaneous (Other)  Expenses,Car parking & garages
Buckinghamshire Council ,31.01.2024,09.01.2024,"Planning, Growth & Sustainability",AH&R - PGS Dir,CLEAPSS,160,0,160,Course Fees & Post Entry Training,Schools
Buckinghamshire Council ,31.01.2024,09.01.2024,Resources,AH&R - Res Dir,THE OXFORDSHIRE TAXI COMP,480,0,480,Staff Travelling Expenses,Taxicabs & limousines
Buckinghamshire Council ,31.01.2024,09.01.2024,Deputy Chief Executive,Communities - DCE,AO RETAIL LIMITED,203.33,40.67,244,Other Personal Needs,Household appliance stores
Buckinghamshire Council ,31.01.2024,09.01.2024,Deputy Chief Executive,Communities - DCE,AO RETAIL LIMITED,560,112,672,Other Personal Needs,Household appliance stores
Buckinghamshire Council ,31.01.2024,09.01.2024,Deputy Chief Executive,Communities - DCE,AO RETAIL LIMITED,1,0,1,Other Personal Needs,Household appliance stores
Buckinghamshire Council ,31.01.2024,09.01.2024,CC Obsolete Cost Centres,Obsolete Cost Centres,TRAVELODGE GB0000,64.24,0,64.24,"Courses, Conference and Seminar Fees",Travelodge
Buckinghamshire Council ,31.01.2024,09.01.2024,CC Obsolete Cost Centres,Obsolete Cost Centres,trainline,203.49,0,203.49,Staff Travelling Expenses,Passenger railways
Buckinghamshire Council ,31.01.2024,09.01.2024,Resources,AH&R - Res Dir,AMZNMKTPLACE,43.59,0,43.59,Stationery & Office Supplies,Miscellaneous retail
Buckinghamshire Council ,31.01.2024,09.01.2024,"Planning, Growth & Sustainability",Housing & Homelessness & Regulatory PGS,LAND REGISTRY ECOM CCC,3,0,3,Homelessness,Government services
Buckinghamshire Council ,31.01.2024,09.01.2024,Children's Services,Education & Childrens Services - CS Dir,TRAINLINE,125.5,0,125.5,Sec 20/31: Financial Assistance,Passenger railways
Buckinghamshire Council ,31.01.2024,09.01.2024,Children's Services,Education & Childrens Services - CS Dir,TRAINLINE,-19.6,0,-19.6,Sec 20/31: Financial Assistance,Passenger railways
Buckinghamshire Council ,31.01.2024,09.01.2024,"Planning, Growth & Sustainability",AH&R - PGS Dir,MARKS&SPENCER PLC SF,2.4,0,2.4,Purchase.of Refreshments and Food,Grocery stores
Buckinghamshire Council ,31.01.2024,09.01.2024,"Planning, Growth & Sustainability",AH&R - PGS Dir,SCREWFIX HIGH WYCOMBE CRE,19.49,0,19.49,General Repairs & Maintenance,Timber & building supplies
Buckinghamshire Council ,31.01.2024,09.01.2024,Communities,Housing & Homelessness & Regulatory Comm,WWW.FCPATH.ORG,10,0,10,"Courses, Conference and Seminar Fees",Charitable organisations
Buckinghamshire Council ,31.01.2024,09.01.2024,Communities,Housing & Homelessness & Regulatory Comm,WWW.FCPATH.ORG,10,0,10,"Courses, Conference and Seminar Fees",Charitable organisations
Buckinghamshire Council ,31.01.2024,09.01.2024,Children's Services,Education & Childrens Services - CS Dir,MAILCHIMP,47.83,0,47.83,Computer Consumables,
Buckinghamshire Council ,31.01.2024,09.01.2024,Children's Services,Education & Childrens Services - CS Dir,AMAZON.CO.UK,58.04,0,58.04,"Books, Records, Films & Oth Publications",Direct sales companies
Buckinghamshire Council ,31.01.2024,09.01.2024,Adults and Health,Health & Wellbeing - Adults & Health Dir,BKG*HOTEL AT BOOKING.C,142.2,0,142.2,Other Short Term Support,Travel agencies
Buckinghamshire Council ,31.01.2024,09.01.2024,Children's Services,Education & Childrens Services - CS Dir,WWW.ANYVAN.COM,84,0,84,Sec 20/31: Financial Assistance,"Haulage, removals & delivery"
Buckinghamshire Council ,31.01.2024,09.01.2024,Communities,artnerships - Communities,MAILCHIMP,25.21,0,25.21,Miscellaneous (Other)  Expenses,
Buckinghamshire Council ,31.01.2024,09.01.2024,Communities,artnerships - Communities,TRAINLINE,55.59,0,55.59,Staff Travelling Expenses,Passenger railways
Buckinghamshire Council ,31.01.2024,09.01.2024,Children's Services,Education & Childrens Services - CS Dir,ONE BELOW,5,0,5,Professional Services (non curriculum) - External,Grocery stores
Buckinghamshire Council ,31.01.2024,09.01.2024,Children's Services,Education & Childrens Services - CS Dir,ASDA  STORES 4396,33.8,0,33.8,General Provisions (Food),Grocery stores
Buckinghamshire Council ,31.01.2024,09.01.2024,Communities,Culture & Leisure - Communities Dir,SAINSBURYS S/MKTS,6.6,0,6.6,Miscellaneous (Other)  Expenses,Grocery stores
Buckinghamshire Council ,31.01.2024,09.01.2024,"Planning, Growth & Sustainability",AH&R - PGS Dir,AMZNMKTPLACE,173.25,34.65,207.9,Catering & Domestic Equipment,Miscellaneous retail
Buckinghamshire Council ,31.01.2024,09.01.2024,"Planning, Growth & Sustainability",AH&R - PGS Dir,AMZNMKTPLACE,0.05,0,0.05,Catering & Domestic Equipment,Miscellaneous retail
Buckinghamshire Council ,31.01.2024,09.01.2024,Children's Services,Education & Childrens Services - CS Dir,WWW.WEAREHOMESFORSTUDE,"2,012.00",0,"2,012.00",Leaving Care - Higher Education Supp,Estate Agents & Property Management
Buckinghamshire Council ,31.01.2024,09.01.2024,Resources,AH&R - Res Dir,B&Q LTD,53,0,53,General Repairs & Maintenance,Timber & building supplies
Buckinghamshire Council ,31.01.2024,09.01.2024,Resources,AH&R - Res Dir,SP LAURA JAMES HOME,399.98,0,399.98,Awaiting Coding,Furniture & home furnishing
Buckinghamshire Council ,31.01.2024,09.01.2024,Children's Services,Education & Childrens Services - CS Dir,WALLFLOWERS,60,0,60,Other Employees Expenses,Florists
Buckinghamshire Council ,31.01.2024,09.01.2024,"Planning, Growth & Sustainability",Housing & Homelessness & Regulatory PGS,HPI INSTANT INK UK,4.49,0,4.49,Furniture,Electronics shops
Buckinghamshire Council ,31.01.2024,09.01.2024,Children's Services,Education & Childrens Services - CS Dir,TRAINLINE,78.89,0,78.89,Staff Travelling Expenses,Passenger railways
Buckinghamshire Council ,31.01.2024,09.01.2024,Communities,Transport - Communities Dir,PAYPAL,57.97,0,57.97,Awaiting Coding,Men/boys clothing shops
Buckinghamshire Council ,31.01.2024,09.01.2024,Adults and Health,Health & Wellbeing - Adults & Health Dir,AO RETAIL LIMITED,243.99,0,243.99,Miscellaneous (Other)  Expenses,Household appliance stores
Buckinghamshire Council ,31.01.2024,09.01.2024,Deputy Chief Executive,Communities - DCE,PAYPAL,308.33,61.67,370,Other Personal Needs,Variety stores
Buckinghamshire Council ,31.01.2024,09.01.2024,Deputy Chief Executive,Communities - DCE,PAYPAL,222.45,44.49,266.94,Other Personal Needs,Variety stores
Buckinghamshire Council ,31.01.2024,09.01.2024,Deputy Chief Executive,Communities - DCE,PAYPAL,0.01,0,0.01,Other Personal Needs,Variety stores
Buckinghamshire Council ,31.01.2024,08.01.2024,"Planning, Growth & Sustainability",Housing & Homelessness & Regulatory PGS,ABBEY LODGE HOTEL,159,0,159,Homelessness,"Hotels, motels & resorts"
Buckinghamshire Council ,31.01.2024,08.01.2024,"Planning, Growth & Sustainability",Housing & Homelessness & Regulatory PGS,CHRISS MOTEL,50,0,50,Homelessness,"Hotels, motels & resorts"
Buckinghamshire Council ,31.01.2024,08.01.2024,"Planning, Growth & Sustainability",Housing & Homelessness & Regulatory PGS,CHRISS MOTEL,100,0,100,Homelessness,"Hotels, motels & resorts"
Buckinghamshire Council ,31.01.2024,08.01.2024,"Planning, Growth & Sustainability",Housing & Homelessness & Regulatory PGS,PREMIER INN,234.6,0,234.6,Homelessness,Premier Inn
Buckinghamshire Council ,31.01.2024,08.01.2024,"Planning, Growth & Sustainability",Housing & Homelessness & Regulatory PGS,AMZNMKTPLACE,304.24,0,304.24,Miscellaneous (Other)  Expenses,Miscellaneous retail
Buckinghamshire Council ,31.01.2024,08.01.2024,"Planning, Growth & Sustainability",Housing & Homelessness & Regulatory PGS,THE BELL AYLESBURY,376,0,376,"Courses, Conference and Seminar Fees","Hotels, motels & resorts"
Buckinghamshire Council ,31.01.2024,08.01.2024,"Planning, Growth & Sustainability",Housing & Homelessness & Regulatory PGS,PREMIER INN,196,0,196,"Courses, Conference and Seminar Fees",Premier Inn
Buckinghamshire Council ,31.01.2024,08.01.2024,"Planning, Growth & Sustainability",Climate Change & Environment - PGS,RIVERBANK HOTEL OPERATOR,196.66,0,196.66,Staff Travelling Expenses,
Buckinghamshire Council ,31.01.2024,08.01.2024,"Planning, Growth & Sustainability",Climate Change & Environment - PGS,RIVERBANK HOTEL OPERATOR,196.66,0,196.66,Staff Travelling Expenses,
Buckinghamshire Council ,31.01.2024,08.01.2024,Children's Services,Education & Childrens Services - CS Dir,BUCKS SCHOOLWEAR PLUS,39.24,0,39.24,Activities & General Recreation,Children/infants shops
Buckinghamshire Council ,31.01.2024,08.01.2024,Children's Services,Education & Childrens Services - CS Dir,AMZNMKTPLACE,43.99,0,43.99,Stationery & Office Supplies,Miscellaneous retail
Buckinghamshire Council ,31.01.2024,08.01.2024,Children's Services,Education & Childrens Services - CS Dir,AMZNMKTPLACE,33.5,6.7,40.2,Training Materials,Miscellaneous retail
Buckinghamshire Council ,31.01.2024,08.01.2024,Children's Services,Education & Childrens Services - CS Dir,AMZNMKTPLACE,20.67,0,20.67,Training Materials,Miscellaneous retail
Buckinghamshire Council ,31.01.2024,08.01.2024,Children's Services,Education & Childrens Services - CS Dir,BUCKINGHAM HOTELS,"1,890.00",0,"1,890.00",Sec 17: Accommodation,"Hotels, motels & resorts"
Buckinghamshire Council ,31.01.2024,08.01.2024,Communities,Housing & Homelessness & Regulatory Comm,AMAZON.CO.UK,33.93,0,33.93,Stationery & Office Supplies,Direct sales companies
Buckinghamshire Council ,31.01.2024,08.01.2024,Resources,AH&R - Res Dir,GEN REGISTER OFFICE,11,0,11,Miscellaneous (Other)  Expenses,Government services
Buckinghamshire Council ,31.01.2024,08.01.2024,Resources,AH&R - Res Dir,GEN REGISTER OFFICE,11,0,11,Miscellaneous (Other)  Expenses,Government services
Buckinghamshire Council ,31.01.2024,08.01.2024,Resources,AH&R - Res Dir,GEN REGISTER OFFICE,11,0,11,Miscellaneous (Other)  Expenses,Government services
Buckinghamshire Council ,31.01.2024,08.01.2024,Resources,AH&R - Res Dir,GEN REGISTER OFFICE,14,0,14,Miscellaneous (Other)  Expenses,Government services
Buckinghamshire Council ,31.01.2024,08.01.2024,Resources,AH&R - Res Dir,BUCKINGHAMSHIRE CNCL,11,0,11,Miscellaneous (Other)  Expenses,Government services
Buckinghamshire Council ,31.01.2024,08.01.2024,"Planning, Growth & Sustainability",AH&R - PGS Dir,SCREWFIX DIR LTD,17.47,0,17.47,General Repairs & Maintenance,Timber & building supplies
Buckinghamshire Council ,31.01.2024,08.01.2024,Children's Services,Education & Childrens Services - CS Dir,AELP.ORG.UK,99,19.8,118.8,Training (Inc. Health & Safety Courses),Schools
Buckinghamshire Council ,31.01.2024,08.01.2024,Children's Services,Education & Childrens Services - CS Dir,AMZNMKTPLACE,3.29,0,3.29,Course Fees & Post Entry Training,Miscellaneous retail
Buckinghamshire Council ,31.01.2024,08.01.2024,Communities,Culture & Leisure - Communities Dir,TESCO STORES 3099,35.5,0,35.5,Events Expenditure,Grocery stores
Buckinghamshire Council ,31.01.2024,08.01.2024,Communities,Transport - Communities Dir,PARKING-WATERSIDE,1.1,0,1.1,Repair and Maintenance of Equipment,Car parking & garages
Buckinghamshire Council ,31.01.2024,08.01.2024,"Planning, Growth & Sustainability",AH&R - PGS Dir,ASDA SUPERSTORE,17.4,0,17.4,General Provisions (Food),Grocery stores
Buckinghamshire Council ,31.01.2024,08.01.2024,Children's Services,Education & Childrens Services - CS Dir,TESCO STORES 2041,2,0,2,Professional Services (non curriculum) - External,Grocery stores
Buckinghamshire Council ,31.01.2024,08.01.2024,Children's Services,Education & Childrens Services - CS Dir,CARD FACTORY,12.33,0,12.33,Professional Services (non curriculum) - External,"Gift, card & novelty shops"
Buckinghamshire Council ,31.01.2024,08.01.2024,Children's Services,Education & Childrens Services - CS Dir,AMZNMktplace,27.27,0,27.27,Awaiting Coding,Miscellaneous retail
Buckinghamshire Council ,31.01.2024,08.01.2024,Children's Services,Education & Childrens Services - CS Dir,BKG*HOTEL AT BOOKING.C,85.95,0,85.95,Staff Travelling Expenses,Travel agencies
Buckinghamshire Council ,31.01.2024,08.01.2024,Resources,AH&R - Res Dir,2MAA042400170 TD E-PMT,82,0,82,Awaiting Coding,Government services
Buckinghamshire Council ,31.01.2024,08.01.2024,Resources,AH&R - Res Dir,WF *UK4210575654,37.98,0,37.98,Awaiting Coding,Furniture & home furnishing
Buckinghamshire Council ,31.01.2024,08.01.2024,"Planning, Growth & Sustainability",Planning & Regeneration - PGS,TRAINLINE,19.05,0,19.05,Staff Travelling Expenses,Passenger railways
Buckinghamshire Council ,31.01.2024,08.01.2024,Children's Services,Education & Childrens Services - CS Dir,WWW.EVERYONEACTIVE.COM,5,0,5,Other Personal Needs,Sport & recreational camps
Buckinghamshire Council ,31.01.2024,08.01.2024,Children's Services,Education & Childrens Services - CS Dir,SUMUP  *ARROW TRANSPOR,400,0,400,Staff Travelling Expenses,Taxicabs & limousines
Buckinghamshire Council ,31.01.2024,08.01.2024,Adults and Health,Health & Wellbeing - Adults & Health Dir,ASDA GROCERIES ONLINE,81.03,0,81.03,General Provisions (Food),Grocery stores
Buckinghamshire Council ,31.01.2024,08.01.2024,Adults and Health,Health & Wellbeing - Adults & Health Dir,ASDA GROCERIES ONLINE,98.06,0,98.06,General Provisions (Food),Grocery stores
Buckinghamshire Council ,31.01.2024,08.01.2024,Adults and Health,Health & Wellbeing - Adults & Health Dir,ASDA GROCERIES ONLINE,-5.8,0,-5.8,General Provisions (Food),Grocery stores
Buckinghamshire Council ,31.01.2024,08.01.2024,Adults and Health,Health & Wellbeing - Adults & Health Dir,ASDA GROCERIES ONLINE,-1.55,0,-1.55,General Provisions (Food),Grocery stores
Buckinghamshire Council ,31.01.2024,08.01.2024,Adults and Health,Health & Wellbeing - Adults & Health Dir,ASDA GROCERIES ONLINE,-1.4,0,-1.4,General Provisions (Food),Grocery stores
Buckinghamshire Council ,31.01.2024,08.01.2024,Children's Services,Education & Childrens Services - CS Dir,MYTRIPBUS* REDLINE BUS,8,0,8,Sec 20/31: Supp for Contact,
Buckinghamshire Council ,31.01.2024,08.01.2024,Children's Services,Education & Childrens Services - CS Dir,MYTRIPBUS* REDLINE BUS,8,0,8,Sec 20/31: Supp for Contact,
Buckinghamshire Council ,31.01.2024,08.01.2024,Children's Services,Education & Childrens Services - CS Dir,ARRIVA UK BUS,8,0,8,Sec 20/31: Supp for Contact,"Buses, charter & tour"
Buckinghamshire Council ,31.01.2024,08.01.2024,Children's Services,Education & Childrens Services - CS Dir,FIRST BUS - WEB,15.6,0,15.6,Sec 20/31: Supp for Contact,"Buses, charter & tour"
Buckinghamshire Council ,31.01.2024,08.01.2024,Children's Services,Education & Childrens Services - CS Dir,FIRST BUS - WEB,15.6,0,15.6,Sec 20/31: Supp for Contact,"Buses, charter & tour"
Buckinghamshire Council ,31.01.2024,08.01.2024,Children's Services,Education & Childrens Services - CS Dir,TRAINLINE,23.59,0,23.59,Sec 20/31: Supp for Contact,Passenger railways
Buckinghamshire Council ,31.01.2024,08.01.2024,Children's Services,Education & Childrens Services - CS Dir,TIGER TAXIS,55,0,55,Sec 20/31: Transport,Taxicabs & limousines
Buckinghamshire Council ,31.01.2024,08.01.2024,Children's Services,Education & Childrens Services - CS Dir,PAYPAL,7.5,0,7.5,Course Fees & Post Entry Training,Professional services
Buckinghamshire Council ,31.01.2024,08.01.2024,Resources,AH&R - Res Dir,GEN REGISTER OFFICE,-11,0,-11,Miscellaneous (Other)  Expenses,Government services
Buckinghamshire Council ,31.01.2024,08.01.2024,Resources,AH&R - Res Dir,GEN REGISTER OFFICE,-14,0,-14,Miscellaneous (Other)  Expenses,Government services
Buckinghamshire Council ,31.01.2024,07.01.2024,Children's Services,Education & Childrens Services - CS Dir,TESCO STORES 2041,177.62,0,177.62,General Provisions (Food),Grocery stores
Buckinghamshire Council ,31.01.2024,07.01.2024,Children's Services,Education & Childrens Services - CS Dir,AMZNMKTPLACE,6.99,0,6.99,Other Equipment and Materials,Miscellaneous retail
Buckinghamshire Council ,31.01.2024,07.01.2024,Children's Services,Education & Childrens Services - CS Dir,AMAZON* 204-2376031-39,4.79,0,4.79,Course Fees & Post Entry Training,Misc. general merchandise
Buckinghamshire Council ,31.01.2024,07.01.2024,Children's Services,Education & Childrens Services - CS Dir,AMZNMKTPLACE,16.95,0,16.95,Leaving Care - Grants for Care Leavers,Miscellaneous retail
Buckinghamshire Council ,31.01.2024,07.01.2024,"Planning, Growth & Sustainability",Housing & Homelessness & Regulatory PGS,PREMIER INN,-358,0,-358,Bed & Breakfast,Premier Inn
Buckinghamshire Council ,31.01.2024,06.01.2024,Children's Services,Education & Childrens Services - CS Dir,ASDA GROCERIES ONLINE,46.97,0,46.97,General Provisions (Food),Grocery stores
Buckinghamshire Council ,31.01.2024,06.01.2024,Children's Services,Education & Childrens Services - CS Dir,ASDA GROCERIES ONLINE,-0.6,0,-0.6,General Provisions (Food),Grocery stores
Buckinghamshire Council ,31.01.2024,05.01.2024,Children's Services,Education & Childrens Services - CS Dir,AMAZON.CO.UK,31.12,0,31.12,General Provisions (Food),Direct sales companies
Buckinghamshire Council ,31.01.2024,05.01.2024,Deputy Chief Executive,AH&R- DCE Dir,PAYPAL,103.5,20.7,124.2,Miscellaneous (Other)  Expenses,Variety stores
Buckinghamshire Council ,31.01.2024,05.01.2024,Deputy Chief Executive,AH&R- DCE Dir,PAYPAL,0.01,0,0.01,Miscellaneous (Other)  Expenses,Variety stores
Buckinghamshire Council ,31.01.2024,05.01.2024,"Planning, Growth & Sustainability",AH&R - PGS Dir,ARCHITECTS REGISTN BOA,199,0,199,Course Fees & Post Entry Training,Government services
Buckinghamshire Council ,31.01.2024,05.01.2024,Resources,AH&R - Res Dir,CCS*CabCard Services -,110.3,0,110.3,Staff Travelling Expenses,Taxicabs & limousines
Buckinghamshire Council ,31.01.2024,05.01.2024,Resources,AH&R - Res Dir,THE OXFORDSHIRE TAXI COMP,130,0,130,Staff Travelling Expenses,Taxicabs & limousines
Buckinghamshire Council ,31.01.2024,05.01.2024,Deputy Chief Executive,Communities - DCE,WWW.ARGOS.CO.UK,27.59,5.52,33.11,Other Personal Needs,Department stores
Buckinghamshire Council ,31.01.2024,05.01.2024,Deputy Chief Executive,Communities - DCE,WWW.ARGOS.CO.UK,103.29,20.66,123.95,Other Personal Needs,Department stores
Buckinghamshire Council ,31.01.2024,05.01.2024,Deputy Chief Executive,Communities - DCE,AO RETAIL LIMITED,735,147,882,Other Personal Needs,Household appliance stores
Buckinghamshire Council ,31.01.2024,05.01.2024,Deputy Chief Executive,Communities - DCE,AO RETAIL LIMITED,668.33,133.67,802,Other Personal Needs,Household appliance stores
Buckinghamshire Council ,31.01.2024,05.01.2024,Deputy Chief Executive,Communities - DCE,AO RETAIL LIMITED,224.16,44.84,269,Other Personal Needs,Household appliance stores
Buckinghamshire Council ,31.01.2024,05.01.2024,Children's Services,Education & Childrens Services - CS Dir,D.G. PRIVATE HIRE,11.9,0,11.9,Sec 20/31: Transport,Taxicabs & limousines
Buckinghamshire Council ,31.01.2024,05.01.2024,Children's Services,Education & Childrens Services - CS Dir,A1 TAXI SERVICE,700,140,840,Sec 20/31: Transport,Taxicabs & limousines
Buckinghamshire Council ,31.01.2024,05.01.2024,Children's Services,Education & Childrens Services - CS Dir,PAYPAL,6.2,0,6.2,Training Materials,Charitable organisations
Buckinghamshire Council ,31.01.2024,05.01.2024,Children's Services,Education & Childrens Services - CS Dir,WP*TEDDYTALKTEST,125,0,125,Training Materials,Schools
Buckinghamshire Council ,31.01.2024,05.01.2024,Children's Services,Education & Childrens Services - CS Dir,SP SMART KIDS,23.15,4.63,27.78,Computer Consumables,Computer software stores
Buckinghamshire Council ,31.01.2024,05.01.2024,Resources,AH&R - Res Dir,VOUCHER EXPRESS,100,0,100,Miscellaneous (Other)  Expenses,Miscellaneous retail
Buckinghamshire Council ,31.01.2024,05.01.2024,Communities,Transport - Communities Dir,TOOLSTATION LTD,20.98,0,20.98,Materials,Timber & building supplies
Buckinghamshire Council ,31.01.2024,05.01.2024,Children's Services,Education & Childrens Services - CS Dir,NEW YORK DELI (AYLESBURY),45,0,45,Subsistence,Restaurants
Buckinghamshire Council ,31.01.2024,05.01.2024,"Planning, Growth & Sustainability",AH&R - PGS Dir,AMZNMKTPLACE,3.99,0,3.99,Other Equipment and Materials,Miscellaneous retail
Buckinghamshire Council ,31.01.2024,05.01.2024,"Planning, Growth & Sustainability",AH&R - PGS Dir,B & Q 1124,12,0,12,General Repairs & Maintenance,Home supply warehouse stores
Buckinghamshire Council ,31.01.2024,05.01.2024,"Planning, Growth & Sustainability",AH&R - PGS Dir,TOOLSTATION LTD,42.84,0,42.84,General Repairs & Maintenance,Timber & building supplies
Buckinghamshire Council ,31.01.2024,05.01.2024,"Planning, Growth & Sustainability",AH&R - PGS Dir,LAMPS - THE ELECTRICAL W,73.67,0,73.67,General Repairs & Maintenance,Electrical parts & equipment
Buckinghamshire Council ,31.01.2024,05.01.2024,Communities,Transport - Communities Dir,B & Q 1305,24.34,0,24.34,Materials,Home supply warehouse stores
Buckinghamshire Council ,31.01.2024,05.01.2024,Resources,AH&R - Res Dir,LONDON STOCK EXCHANGE LEI,50,10,60,Professional Services (non curriculum) - External,Professional services
Buckinghamshire Council ,31.01.2024,05.01.2024,Communities,artnerships - Communities,DOCUSIGN INC.,5.52,0,5.52,Miscellaneous (Other)  Expenses,
Buckinghamshire Council ,31.01.2024,05.01.2024,Children's Services,Education & Childrens Services - CS Dir,AMZNMKTPLACE,29.79,0,29.79,Leaving Care - Grants for Care Leavers,Miscellaneous retail
Buckinghamshire Council ,31.01.2024,05.01.2024,Children's Services,Education & Childrens Services - CS Dir,DUNELM SOFTFURNISHINGS,265.15,0,265.15,Leaving Care - Grants for Care Leavers,Furniture & home furnishing
Buckinghamshire Council ,31.01.2024,05.01.2024,Adults and Health,Health & Wellbeing - Adults & Health Dir,TESCO STORES 5135,173.24,0,173.24,General Provisions (Food),Grocery stores
Buckinghamshire Council ,31.01.2024,05.01.2024,Children's Services,Education & Childrens Services - CS Dir,TRAINLINE,78.89,0,78.89,Sec 20/31: Supp for Contact,Passenger railways
Buckinghamshire Council ,31.01.2024,05.01.2024,Children's Services,Education & Childrens Services - CS Dir,TRAINLINE,34.69,0,34.69,Sec 20/31: Supp for Contact,Passenger railways
Buckinghamshire Council ,31.01.2024,05.01.2024,Communities,ommunities - Trading Accounts,DVLA VEHICLE TAX,320,0,320,Vehicle Taxation Costs,Tax payments
Buckinghamshire Council ,31.01.2024,05.01.2024,Communities,ommunities - Trading Accounts,DVLA VEHICLE TAX,165,0,165,Vehicle Taxation Costs,Tax payments
Buckinghamshire Council ,31.01.2024,05.01.2024,Communities,ommunities - Trading Accounts,DVLA VEHICLE TAX,320,0,320,Vehicle Taxation Costs,Tax payments
Buckinghamshire Council ,31.01.2024,05.01.2024,Communities,ommunities - Trading Accounts,DVLA VEHICLE TAX,165,0,165,Vehicle Taxation Costs,Tax payments
Buckinghamshire Council ,31.01.2024,05.01.2024,Communities,ommunities - Trading Accounts,DVLA VEHICLE TAX,165,0,165,Vehicle Taxation Costs,Tax payments
Buckinghamshire Council ,31.01.2024,05.01.2024,Communities,Housing & Homelessness & Regulatory Comm,AMZNMKTPLACE,14.99,0,14.99,Vending Machines Supplies,Miscellaneous retail
Buckinghamshire Council ,31.01.2024,05.01.2024,Children's Services,Education & Childrens Services - CS Dir,CARPETRIGHT LIMITED,"1,055.50",0,"1,055.50",Leaving Care - Grants for Care Leavers,Furniture & home furnishing
Buckinghamshire Council ,31.01.2024,04.01.2024,Children's Services,Education & Childrens Services - CS Dir,SCOTTISH POWER,455.9,0,455.9,Sec 17: Financial Assistance,Fuel dealers
Buckinghamshire Council ,31.01.2024,04.01.2024,Adults and Health,Health & Wellbeing - Adults & Health Dir,ASDA SUPERSTORE,13.8,0,13.8,General Provisions (Food),Grocery stores
Buckinghamshire Council ,31.01.2024,04.01.2024,Children's Services,Education & Childrens Services - CS Dir,SUMUP  *BUDGET CARS LT,144,0,144,Sec 20/31: Supp for Contact,Taxicabs & limousines
Buckinghamshire Council ,31.01.2024,04.01.2024,Deputy Chief Executive,Leader - DCE,AMAZON* 204-1205030-89,8.25,1.65,9.9,Printing & Stationery,Misc. general merchandise
Buckinghamshire Council ,31.01.2024,04.01.2024,Deputy Chief Executive,Communities - DCE,AO RETAIL LIMITED,220,44,264,Other Personal Needs,Household appliance stores
Buckinghamshire Council ,31.01.2024,04.01.2024,Deputy Chief Executive,Communities - DCE,AO RETAIL LIMITED,132.5,26.5,159,Other Personal Needs,Household appliance stores
Buckinghamshire Council ,31.01.2024,04.01.2024,Deputy Chief Executive,Communities - DCE,AO RETAIL LIMITED,631.66,126.34,758,Other Personal Needs,Household appliance stores
Buckinghamshire Council ,31.01.2024,04.01.2024,Deputy Chief Executive,Communities - DCE,AO RETAIL LIMITED,165.83,33.17,199,Other Personal Needs,Household appliance stores
Buckinghamshire Council ,31.01.2024,04.01.2024,Children's Services,Education & Childrens Services - CS Dir,APPLE.COM/UK,100,0,100,Training Materials,Electronics shops
Buckinghamshire Council ,31.01.2024,04.01.2024,"Planning, Growth & Sustainability",AH&R - PGS Dir,TOOLSTATION LTD,79.92,0,79.92,General Repairs & Maintenance,Timber & building supplies
Buckinghamshire Council ,31.01.2024,04.01.2024,"Planning, Growth & Sustainability",AH&R - PGS Dir,GENERAL LAMPS LTD,22.94,0,22.94,Special Projects,Household appliance stores
Buckinghamshire Council ,31.01.2024,04.01.2024,Adults and Health,Health & Wellbeing - Adults & Health Dir,AMZNMKTPLACE,14.98,0,14.98,Health & Safety Supplies & Services,Miscellaneous retail
Buckinghamshire Council ,31.01.2024,04.01.2024,Deputy Chief Executive,AH&R- DCE Dir,SRA,272,0,272,Professional Subscriptions re Employees,Membership organisations
Buckinghamshire Council ,31.01.2024,04.01.2024,Communities,Special Expenses,ESSENTIALS,8.99,0,8.99,Maintenance of Grounds,Hardware Equipment & Suppliers
Buckinghamshire Council ,31.01.2024,04.01.2024,Communities,Special Expenses,POST OFFICE COUNTER,150,0,150,General Postage,Postal services
Buckinghamshire Council ,31.01.2024,04.01.2024,Children's Services,Education & Childrens Services - CS Dir,HOO*HOOTSUITE INC,123.84,0,123.84,Marketing,Misc business services
Buckinghamshire Council ,31.01.2024,04.01.2024,Children's Services,Education & Childrens Services - CS Dir,MEDISUPPLIES,76.86,0,76.86,Medical Supplies & Services inc Vet'nary,"Laboratory, medical & hospital equipment"
Buckinghamshire Council ,31.01.2024,04.01.2024,Children's Services,Education & Childrens Services - CS Dir,TIMPSON LTD,27,0,27,Furniture,Miscellaneous retail
Buckinghamshire Council ,31.01.2024,04.01.2024,Children's Services,Education & Childrens Services - CS Dir,AMAZON.CO.UK,4.98,0,4.98,Stationery & Office Supplies,Direct sales companies
Buckinghamshire Council ,31.01.2024,04.01.2024,Children's Services,Education & Childrens Services - CS Dir,ASDA  STORES 4396,21.5,0,21.5,General Provisions (Food),Grocery stores
Buckinghamshire Council ,31.01.2024,04.01.2024,Children's Services,Education & Childrens Services - CS Dir,BT BUSINESS BILL,52.46,0,52.46,Telephones,Phone services
Buckinghamshire Council ,31.01.2024,04.01.2024,Children's Services,Education & Childrens Services - CS Dir,UNILINK SOFTWARE LTD,10,0,10,Computer Consumables,Computer software stores
Buckinghamshire Council ,31.01.2024,04.01.2024,Children's Services,Education & Childrens Services - CS Dir,BKG*HOTEL AT BOOKING.C,59,0,59,Staff Travelling Expenses,Travel agencies
Buckinghamshire Council ,31.01.2024,04.01.2024,Children's Services,Education & Childrens Services - CS Dir,GWR DELAY REPAY,-22.5,0,-22.5,Leaving Care - Transport,Passenger railways
Buckinghamshire Council ,31.01.2024,04.01.2024,Resources,AH&R - Res Dir,LINKEDIN ADS 9765641614,132.07,0,132.07,Permanent Recruitment Costs,Advertising services
Buckinghamshire Council ,31.01.2024,04.01.2024,Deputy Chief Executive,AH&R- DCE Dir,SUMUP  *CABS4U,70,0,70,Staff Travelling Expenses,Taxicabs & limousines
Buckinghamshire Council ,31.01.2024,04.01.2024,Children's Services,Education & Childrens Services - CS Dir,WWW.EVERYONEACTIVE.COM,5,0,5,Other Personal Needs,Sport & recreational camps
Buckinghamshire Council ,31.01.2024,04.01.2024,"Planning, Growth & Sustainability",Housing & Homelessness & Regulatory PGS,ONE BELOW,2,0,2,Other General Office Expenses,Grocery stores
Buckinghamshire Council ,31.01.2024,04.01.2024,Adults and Health,Health & Wellbeing - Adults & Health Dir,TESCO STORES 4395,10,0,10,Cleaning & Domestic Equipment,Grocery stores
Buckinghamshire Council ,31.01.2024,04.01.2024,Communities,Transport - Communities Dir,SHELL 40-42 WOODSIDE ROAD,68.25,0,68.25,Petrol,Service stations
Buckinghamshire Council ,31.01.2024,04.01.2024,Adults and Health,Health & Wellbeing - Adults & Health Dir,WM MORRISONS STORE,74.23,0,74.23,Activities & General Recreation,Grocery stores
Buckinghamshire Council ,31.01.2024,04.01.2024,Deputy Chief Executive,AH&R- DCE Dir,PAYPAL,42.55,8.51,51.06,Miscellaneous (Other)  Expenses,Variety stores
Buckinghamshire Council ,31.01.2024,04.01.2024,Deputy Chief Executive,AH&R- DCE Dir,PAYPAL,0.04,0,0.04,Miscellaneous (Other)  Expenses,Variety stores
Buckinghamshire Council ,31.01.2024,04.01.2024,Children's Services,Education & Childrens Services - CS Dir,TVLICENSING.CO.UK,159,0,159,Professional Services (non curriculum) - External,Consultants & public relation services
Buckinghamshire Council ,31.01.2024,03.01.2024,"Planning, Growth & Sustainability",Housing & Homelessness & Regulatory PGS,AMZNMKTPLACE,764.46,0,764.46,Miscellaneous (Other)  Expenses,Miscellaneous retail
Buckinghamshire Council ,31.01.2024,03.01.2024,Children's Services,Education & Childrens Services - CS Dir,TESCO STORES 2038,136.63,0,136.63,General Provisions (Food),Grocery stores
Buckinghamshire Council ,31.01.2024,03.01.2024,Children's Services,Education & Childrens Services - CS Dir,DUNELM SOFT FURNISHINGS,31.75,0,31.75,Other Personal Needs,Furniture & home furnishing
Buckinghamshire Council ,31.01.2024,03.01.2024,Children's Services,Education & Childrens Services - CS Dir,BRITISH A,147.61,0,147.61,Staff Travelling Expenses,British Airways
Buckinghamshire Council ,31.01.2024,03.01.2024,Children's Services,Education & Childrens Services - CS Dir,POST OFFICE COUNTER,8.15,0,8.15,General Postage,Postal services
Buckinghamshire Council ,31.01.2024,03.01.2024,"Planning, Growth & Sustainability",AH&R - PGS Dir,LOCK & KEY CENTRE,12,0,12,Other Equipment and Materials,Misc business services
Buckinghamshire Council ,31.01.2024,03.01.2024,"Planning, Growth & Sustainability",AH&R - PGS Dir,LOCK & KEY CENTRE,12,0,12,Other Equipment and Materials,Misc business services
Buckinghamshire Council ,31.01.2024,03.01.2024,Communities,Housing & Homelessness & Regulatory PGS,INST ENV MGT & ASSESS,39,7.8,243.8,Professional Subscriptions re Employees,Charitable organisations
Buckinghamshire Council ,31.01.2024,03.01.2024,Communities,Housing & Homelessness & Regulatory PGS,INST ENV MGT & ASSESS,197,0,197,Professional Subscriptions re Employees,Charitable organisations
Buckinghamshire Council ,31.01.2024,03.01.2024,Communities,Transport - Communities Dir,HALFORDS 0894,44,0,44,Vehicle Hire,"Bicycle shops, sales & service"
Buckinghamshire Council ,31.01.2024,03.01.2024,Communities,Climate Change & Environment - Community,WHITEHILL SURGERY,50,0,50,Service Development,Doctors
Buckinghamshire Council ,31.01.2024,03.01.2024,Adults and Health,Health & Wellbeing - Adults & Health Dir,BKG*HOTEL AT BOOKING.C,453.6,0,453.6,Other Short Term Support,Travel agencies
Buckinghamshire Council ,31.01.2024,03.01.2024,Children's Services,Education & Childrens Services - CS Dir,CAROUSELBUSES.CO.UK,20,0,20,Sec 17: Transport,Local commuter transport
Buckinghamshire Council ,31.01.2024,03.01.2024,Children's Services,Education & Childrens Services - CS Dir,NEALES TAXIS LTD,"2,016.00",0,"2,016.00",Sec 20/31: Transport,Taxicabs & limousines
Buckinghamshire Council ,31.01.2024,03.01.2024,Children's Services,Education & Childrens Services - CS Dir,AMAZON PRIME,-5.3,0,-5.3,Support for Foster Carers,Continuous subscriptions
Buckinghamshire Council ,31.01.2024,03.01.2024,Adults and Health,Communities - Adults & Health,AMZNMKTPLACE,8.99,0,8.99,Stationery & Office Supplies,Miscellaneous retail
Buckinghamshire Council ,31.01.2024,03.01.2024,Children's Services,Education & Childrens Services - CS Dir,TOBY CARVERY - BESSACARR,59,0,59,Staff Travelling Expenses,Restaurants
Buckinghamshire Council ,31.01.2024,03.01.2024,Children's Services,Education & Childrens Services - CS Dir,NTU INTERNET,"4,625.00",0,"4,625.00",Leaving Care - Higher Education Supp,Colleges & universities
Buckinghamshire Council ,31.01.2024,03.01.2024,Children's Services,Education & Childrens Services - CS Dir,HELLO STUDENT,"4,263.60",0,"4,263.60",Leaving Care - Higher Education Supp,Estate Agents & Property Management
Buckinghamshire Council ,31.01.2024,03.01.2024,Children's Services,Education & Childrens Services - CS Dir,CONVERA* KING S COLLEG,"4,625.00",0,"4,625.00",Leaving Care - Higher Education Supp,Colleges & universities
Buckinghamshire Council ,31.01.2024,03.01.2024,Children's Services,Education & Childrens Services - CS Dir,OSPREY CHARGING NETWOR,26.49,0,26.49,Car Allowances Mileage & Lump Sum,
Buckinghamshire Council ,31.01.2024,03.01.2024,"Planning, Growth & Sustainability",Planning & Regeneration - PGS,AMZNMKTPLACE,40.69,0,40.69,Printing & Stationery,Miscellaneous retail
Buckinghamshire Council ,31.01.2024,03.01.2024,Children's Services,Education & Childrens Services - CS Dir,PAYPAL,459,91.8,550.8,Contract Catering,Caterers
Buckinghamshire Council ,31.01.2024,03.01.2024,"Planning, Growth & Sustainability",Housing & Homelessness & Regulatory PGS,AMZNMKTPLACE,29.99,0,29.99,Furniture,Miscellaneous retail
Buckinghamshire Council ,31.01.2024,03.01.2024,Adults and Health,Health & Wellbeing - Adults & Health Dir,AMAZON.CO.UK,250,0,250,Other General Office Expenses,Direct sales companies
Buckinghamshire Council ,31.01.2024,03.01.2024,Children's Services,Education & Childrens Services - CS Dir,TVLICENSING.CO.UK,159,0,159,Professional Services (non curriculum) - External,Consultants & public relation services
Buckinghamshire Council ,31.01.2024,02.01.2024,"Planning, Growth & Sustainability",Partnership Climate Change & Envir - PGS,AWS EMEA,71.44,0,71.44,Computer Software Licences & Purchase,Misc business services
Buckinghamshire Council ,31.01.2024,02.01.2024,Children's Services,Education & Childrens Services - CS Dir,FIRST BUS - WEB,15.6,0,15.6,Sec 20/31: Supp for Contact,"Buses, charter & tour"
Buckinghamshire Council ,31.01.2024,02.01.2024,Children's Services,Education & Childrens Services - CS Dir,ARRIVA UK BUS,8,0,8,Sec 20/31: Supp for Contact,"Buses, charter & tour"
Buckinghamshire Council ,31.01.2024,02.01.2024,"Planning, Growth & Sustainability",Housing & Homelessness & Regulatory PGS,TRAVELODGE GB0000,272.27,0,272.27,"Courses, Conference and Seminar Fees",Travelodge
Buckinghamshire Council ,31.01.2024,02.01.2024,Deputy Chief Executive,Communities - DCE,AO RETAIL LIMITED,743.33,148.67,892,Other Personal Needs,Household appliance stores
Buckinghamshire Council ,31.01.2024,02.01.2024,Children's Services,Education & Childrens Services - CS Dir,AMAZON.CO.UK,13.99,0,13.99,Other Personal Needs,Direct sales companies
Buckinghamshire Council ,31.01.2024,02.01.2024,Children's Services,Education & Childrens Services - CS Dir,TRAVELODGE GB0000,46.65,0,46.65,"Courses, Conference and Seminar Fees",Travelodge
Buckinghamshire Council ,31.01.2024,02.01.2024,Children's Services,Education & Childrens Services - CS Dir,WIDGIT SOFTWARE,116.65,23.33,139.98,Computer Support Services,"Programming, data processing & system design"
Buckinghamshire Council ,31.01.2024,02.01.2024,Children's Services,Education & Childrens Services - CS Dir,WIDGIT SOFTWARE,0.02,0,0.02,Computer Support Services,"Programming, data processing & system design"
Buckinghamshire Council ,31.01.2024,02.01.2024,"Planning, Growth & Sustainability",AH&R - PGS Dir,AMZNMKTPLACE,11.95,0,11.95,Other Equipment and Materials,Miscellaneous retail
Buckinghamshire Council ,31.01.2024,02.01.2024,"Planning, Growth & Sustainability",AH&R - PGS Dir,BREWERS AYLESBURY,50.09,0,50.09,General Repairs & Maintenance,Hardware stores
Buckinghamshire Council ,31.01.2024,02.01.2024,Children's Services,Education & Childrens Services - CS Dir,AMZNMKTPLACE,437.69,0,437.69,"Books, Records, Films & Oth Publications",Miscellaneous retail
Buckinghamshire Council ,31.01.2024,02.01.2024,Children's Services,Education & Childrens Services - CS Dir,AMZNMKTPLACE,513.06,0,513.06,"Books, Records, Films & Oth Publications",Miscellaneous retail
Buckinghamshire Council ,31.01.2024,02.01.2024,Children's Services,Education & Childrens Services - CS Dir,AMZNMKTPLACE,688.88,0,688.88,"Books, Records, Films & Oth Publications",Miscellaneous retail
Buckinghamshire Council ,31.01.2024,02.01.2024,Children's Services,Education & Childrens Services - CS Dir,AMZNMKTPLACE,336.44,0,336.44,"Books, Records, Films & Oth Publications",Miscellaneous retail
Buckinghamshire Council ,31.01.2024,02.01.2024,Communities,Climate Change & Environment - Community,HELLOPRINT UNITED KINGDOM,183.29,0,183.29,Photocopiers,Photocopy & reproduction services
Buckinghamshire Council ,31.01.2024,02.01.2024,"Planning, Growth & Sustainability",AH&R - PGS Dir,ASDA SUPERSTORE,14.5,0,14.5,General Provisions (Food),Grocery stores
Buckinghamshire Council ,31.01.2024,02.01.2024,Children's Services,Education & Childrens Services - CS Dir,PREMIER INN,66.99,0,66.99,"Courses, Conference and Seminar Fees",Premier Inn
Buckinghamshire Council ,31.01.2024,02.01.2024,Children's Services,Education & Childrens Services - CS Dir,IKEA LTD SHOP ONLINE,293,0,293,Leaving Care - Grants for Care Leavers,Furniture & home furnishing
Buckinghamshire Council ,31.01.2024,02.01.2024,Communities,ommunities - Trust Accounts,RYMAN,29.99,0,29.99,Stationery & Office Supplies,Stationery & office supplies stores
Buckinghamshire Council ,31.01.2024,02.01.2024,Children's Services,Education & Childrens Services - CS Dir,DBS F & PS,208,0,208,"Rents, Wayleaves & Hire of Premises",Government services
Buckinghamshire Council ,31.01.2024,02.01.2024,Resources,AH&R - Res Dir,AWS EMEA,7.28,0,7.28,Computer Software Licences & Purchase,Misc business services
Buckinghamshire Council ,31.01.2024,02.01.2024,Children's Services,Education & Childrens Services - CS Dir,REZUMEUKLTD,46.43,0,46.43,Professional Services (non curriculum) - External,Consultants & public relation services
Buckinghamshire Council ,31.01.2024,02.01.2024,Children's Services,Education & Childrens Services - CS Dir,HIGH SPEED TRAINING,30,0,30,Health & Safety Supplies & Services,Schools
Buckinghamshire Council ,31.01.2024,02.01.2024,Adults and Health,Health & Wellbeing - Adults & Health Dir,ASDA GROCERIES ONLINE,71.11,0,71.11,General Provisions (Food),Grocery stores
Buckinghamshire Council ,31.01.2024,02.01.2024,Adults and Health,Health & Wellbeing - Adults & Health Dir,ASDA GROCERIES ONLINE,-0.2,0,-0.2,General Provisions (Food),Grocery stores
Buckinghamshire Council ,31.01.2024,02.01.2024,Children's Services,Education & Childrens Services - CS Dir,MYTRIPBUS* REDLINE BUS,8,0,8,Sec 20/31: Supp for Contact,
Buckinghamshire Council ,31.01.2024,02.01.2024,Children's Services,Education & Childrens Services - CS Dir,FIRST BUS - WEB,7.8,0,7.8,Sec 20/31: Supp for Contact,"Buses, charter & tour"
Buckinghamshire Council ,31.01.2024,02.01.2024,Children's Services,Education & Childrens Services - CS Dir,TRAVELODGE GB0000,47.92,0,47.92,Sec 20/31: Supp for Contact,Travelodge
Buckinghamshire Council ,31.01.2024,02.01.2024,Children's Services,Education & Childrens Services - CS Dir,TRAINLINE,195.49,0,195.49,Sec 20/31: Supp for Contact,Passenger railways
Buckinghamshire Council ,31.01.2024,01.01.2024,Children's Services,Education & Childrens Services - CS Dir,AMZNMKTPLACE,169.99,0,169.99,Leaving Care - Grants for Care Leavers,Miscellaneous retail
Buckinghamshire Council ,31.01.2024,01.01.2024,Communities,Climate Change & Environment - Community,GOOGLE ADS2753042584,140.5,0,140.5,Advertising,Advertising services
Buckinghamshire Council ,31.01.2024,01.01.2024,Communities,Climate Change & Environment - Community,SPOTIFY,40.43,0,40.43,Advertising,
Buckinghamshire Council ,31.01.2024,01.01.2024,Adults and Health,Health & Wellbeing - Adults & Health Dir,SPOTIFY,183.63,0,183.63,Advertising,
Buckinghamshire Council ,31.01.2024,01.01.2024,Resources,AH&R - Res Dir,LINKEDIN ADS 9757227994,84.67,0,84.67,Permanent Recruitment Costs,Advertising services
Buckinghamshire Council ,31.01.2024,01.01.2024,Children's Services,Education & Childrens Services - CS Dir,GF* WWW.SNAPFITNESS.CO,30.99,0,30.99,YOS - Direct Work,Misc. personal services
Buckinghamshire Council ,31.01.2024,01.01.2024,Resources,AH&R - Res Dir,CLOUD LHZFJ4,178.14,0,178.14,Computer Support Services,Computer network information services
Buckinghamshire Council ,31.01.2024,01.01.2024,Communities,Culture & Leisure - Communities Dir,PAYPAL,32.2,0,32.2,Computer Support Services,Computer network information services
